{"text_format":"1","workbook":"xlsx","n_sheets":8,"sheets":["AMENAZAS Y CONSECUENCIAS ","VALORACION GRAVEDAD (2)","1. IDENTIFICACION DE AMENAZAS","2. MATRIZ DE RIESGOS","3. ELEMENTOS EN GESTIÓN S.S.T","4. ELEMENTOS AMBIENTALES","5. CARACTERISTICAS DE ÁREAS","FORMATO DE EVALUACIÓN"],"not_rendered":{"charts":0,"images":14,"macros":1,"external_links":0,"defined_names":8,"comments":4,"pivot_tables":0},"unopened":[],"bounds":{"document_bytes":16777216,"sheet_cells":100000,"rows_first":2000,"rows_last":500,"rows_between":2000,"halvings":0,"cell_chars":16384,"cell_head_chars":4096},"cells_cut":0,"cells_raw":0,"read":"whole","date_system":"1900"}

{"sheet":"AMENAZAS Y CONSECUENCIAS ","index":0,"n_rows":26,"n_cols":3,"rows_kept":26,"cut":false,"hidden":true,"merged":[[0,0,0,1],[1,0,2,0],[1,1,2,1]]}
["PLANES DE EMERGENCIA Y CONTINGENCIA - LISTADO DE AMENAZAS "]
["AMENAZA","CONSECUENCIAS"]
[]
["SEQUIAS","Escases de agua\nAparición de incendios \nDesplazamiento de fauna \nIncremento de vectores \nDesabastecimiento de alimentos \nIncremento de contaminación \nPérdidas Económicas\nEnfermedades\nSuspensión de suministro de redes físicas (Energía, gas, agua e Internet)\n"]
["INUNDACIONES","Agua en las instalaciones\nDeterioro en la infraestructura\nEnfermedades\nLesiones\nPérdidas Humanas\nAfectación directa de los registros documentales por deterioro o pérdida\nPérdida de Comunicación\nCortos circuitos\nDaño probable en equipos de oficina y muebles\nIncremento de vectores \nIncremento de contaminación \nIncremento de volúmenes de residuos\nInterrupción de Operación o servicio\nPérdidas Económicas\nSuspensión de suministro de redes físicas (Energía, gas, agua e Internet)\n"]
["AVALANCHAS ","Agua en las instalaciones\nMaterial de arrastre en las Instalaciones\nAfectación directa de los registros documentales por deterioro o pérdida\nCortos circuitos\nPérdida de Comunicación\nPérdida estructural\nEnfermedades\nLesiones\nPérdidas Humanas\nDaño probable en equipos de oficina y muebles\nIncremento de vectores \nIncremento de contaminación \nIncremento de volúmenes de residuos\nPérdidas Económicas\nInterrupción de Operación o servicio\nSuspensión de suministro de redes físicas (Energía, gas, agua e Internet)\n"]
["DESLIZAMIENTOS ","Agua en las instalaciones\nMaterial de arrastre en las Instalaciones\nAfectación directa de los registros documentales por deterioro o pérdida\nCortos circuitos\nPérdida de Comunicación\nPérdida estructural\nEnfermedades\nLesiones\nPérdidas Humanas\nDaño probable en equipos de oficina y muebles\nIncremento de vectores \nIncremento de contaminación \nIncremento de volúmenes de residuos\nPérdidas Económicas\nInterrupción de Operación o servicio\nSuspensión de suministro de redes físicas (Energía, gas, agua e Internet)\n"]
["ACTIVIDAD  VOLCÁNICA","Material de arrastre en las Instalaciones\nAfectacion directa de los registros documentales por deterioro o pérdida\nCortos circuitos\nPerdida de Comunicación\nPérdida estructural\nEnfermedades\nLesiones\nPerdidas Humanas\nDaño probable en equipos de oficina y muebles\nIncremento de contaminación\nIncremento de volumenes de residuos\nPérdidas Economicas\nInterrupción de Operación o servicio\nSuspensión de suministro de redes físicas (Energía, gas, agua e Internet)\nCaída de cenizas\nCaida de piroclastos"]
["ACTIVIDAD SISMICA ","Afectación directa de los registros documentales por deterioro o pérdida\nPérdida de Comunicación\nPérdida estructural\nEnfermedades\nLesiones\nPérdidas Humanas\nDaño probable en equipos de oficina y muebles\nIncremento de contaminación\nIncremento de volúmenes de residuos\nPérdidas Económicas\nInterrupción de operación o servicio\nSuspensión de suministro de redes físicas (Energía, gas, agua e Internet)\n"]
["TSUNAMI ","Agua en las instalaciones\nMaterial de arrastre en las Instalaciones\nAfectación directa de los registros documentales por deterioro o pérdida\nPerdida de Comunicación\nPérdida estructural\nEnfermedades\nLesiones\nPérdidas Humanas\nDaño probable en equipos de oficina y muebles\nIncremento de contaminación\nIncremento de volúmenes de residuos\nPérdidas Económicas\nInterrupción de operación o servicio\nSuspensión de suministro de redes físicas (Energía, gas, agua e Internet)\n"]
["VENDAVAL ","Pérdida de Comunicación\nPérdida estructural\nLesiones\nPérdidas Humanas\nDaño probable en equipos de oficina y muebles\nPérdidas Económicas\nInterrupción de operación o servicio\nSuspensión de suministro de redes físicas (Energía, gas, agua e Internet)\n"]
["HURACAN","Pérdida de Comunicación\nPérdida estructural\nLesiones\nPérdidas Humanas\nDaño probable en equipos de oficina y muebles\nPérdidas Económicas\nInterrupción de operación o servicio\nSuspensión de suministro de redes físicas (Energía, gas, agua e Internet)\n"]
["ALTAS PRECIPITACIONES","Agua en las instalaciones\nDeterioro en la infraestructura\nEnfermedades\nLesiones\nAfectacion directa de los registros documentales por deterioro o pérdida\nPerdida de Comunicación\nCortos circuitos\nDaño probable en equipos de oficina y muebles\nIncremento de vectores \nIncremento de contaminación \nIncremento de volumenes de residuos\nInterrupción de Operación o servicio\nPérdidas Economicas\nSuspensión de suministro de redes físicas (Energía, gas, agua e Internet)\n"]
["TORMENTA ELECTRICA","Enfermedades\nLesiones\nPérdidas humanas \nPerdida de Comunicación\nCortos circuitos\nDaño probable en equipos de oficina y muebles\nInterrupción de Operación o servicio\nPérdidas Economicas\nSuspensión de suministro de redes físicas (Energía, gas, agua e Internet)\n"]
["BROTES DE ENFERMEDADES EPIDEMICAS","Enfermedades\nLesiones \nPérdidas humanas\nPérdidas Económicas \nInterrupción de Operación o servicio\n"]
["ENFERMEDADES CONTAGIOSAS DE ORIGEN ANIMAL O VEGETAL","Enfermedades\nLesiones \nPérdidas humanas\nPérdidas Económicas \nInterrupción de Operación o servicio\n"]
["COLAPSO ESTRUCTURAL","Afectación directa de los registros documentales por deterioro o pérdida\nPerdida de Comunicación\nPérdida estructural\nEnfermedades\nLesiones\nPérdidas Humanas\nDaño probable en equipos de oficina y muebles\nIncremento de contaminación\nIncremento de volúmenes de residuos\nPérdidas Económicas\nInterrupción de operación o servicio\nSuspensión de suministro de redes físicas (Energía, gas, agua e Internet)\n"]
["FALLO EN EL SUMINISTRO DE REDES FÍSICAS (hidrosanitarias, Energía, Gas y de Comunicación)","Afectación directa de los registros documentales por deterioro o pérdida\nPerdida de Comunicación\nCortos circuitos \nFugas de agua y gas \nEnfermedades\nLesiones\nPérdidas Humanas\nDaño probable en equipos de oficina y muebles\nIncremento de contaminación\nIncremento de volúmenes de residuos\nPérdidas Económicas\nInterrupción de operación o servicio\nSuspensión de suministro de redes físicas (Energía, gas, agua e Internet)\n","FALLO EN EL SUMINISTRO DE REDES FÍSICAS (hidrosanitarias, Energia, Gas y de Comunicación)"]
["INCENDIOS ","Afectación directa de los registros documentales por deterioro o pérdida\nPerdida de Comunicación\nCortos circuitos \nFugas de agua y gas \nEnfermedades\nLesiones\nPérdidas Humanas\nDaño probable en equipos de oficina y muebles\nIncremento de contaminación\nIncremento de volúmenes de residuos\nPérdidas Económicas\nInterrupción de operación o servicio\nSuspensión de suministro de redes físicas (Energía, gas, agua e Internet)\n"]
["PERDIDA DE CONTENCION DE MATERIALES PELIGROSOS  Y/O DERRAMES ","Enfermedades\nLesiones\nPérdidas Humanas\nIncremento de contaminación\nIncremento de volúmenes de residuos\nIncendio \nPérdidas Económicas\n"]
["FALLA EN SITEMA DE RECOLECCIÓN DE RESIDUOS SÓLIDOS ","Enfermedades \nIncremento de vectores \nIncremento de contaminación\nIncremento de volúmenes de residuos\nPérdidas económicas\n"]
["EXPLOSION ","Afectación directa de los registros documentales por deterioro o pérdida\nPerdida de Comunicación\nCortos circuitos \nFugas de agua y gas \nEnfermedades\nLesiones\nPérdidas Humanas\nDaño probable en equipos de oficina y muebles\nIncremento de contaminación\nIncremento de volúmenes de residuos\nPérdidas Económicas\nInterrupción de operación o servicio\nSuspensión de suministro de redes físicas (Energía, gas, agua e Internet)\n"]
["CONTAMINACIÓN DE ALIMENTOS ","Enfermedades\nPérdidas Humanas\nPérdidas Económicas\nInterrupción de operación o servicio\n"]
["ATENTADOS ","Afectación directa de los registros documentales por deterioro o pérdida\nPerdida de Comunicación\nDaño a la Infraestructura\nEnfermedades\nLesiones\nPérdidas Humanas\nDaño probable en equipos de oficina y muebles\nPérdidas Económicas\nInterrupción de operación o servicio\nSuspensión de suministro de redes físicas (Energía, gas, agua e Internet)\n"]
["HUELGAS Y/O ASONADAS ","Daño a la Infraestructura\nLesiones\nDaño probable en equipos de oficina y muebles\nPérdidas Económicas\nInterrupción de operación o servicio\n"]
["HURTOS ","Lesiones\nPérdidas Humanas\nDaño a la Infraestructura \nPérdidas Económicas\nAfectación directa de los registros documentales por deterioro o pérdida\n"]

{"sheet":"VALORACION GRAVEDAD (2)","index":1,"n_rows":39,"n_cols":19,"rows_kept":39,"cut":false,"hidden":true,"merged":[[23,1,23,2],[31,1,31,2],[9,13,9,17],[1,1,2,2],[1,5,1,8],[3,5,4,5],[3,6,3,8],[10,7,10,8],[11,1,12,2],[2,11,7,11]]}
[null,null,null,null,null,null,null,null,null,null,null,null,null,1,2,3,4,5]
[null,"Clasificación de consecuencias para la vida y la salud",null,null,null,"Clasificación de consecuencias para la propiedad según tamaño de la Organización",null,null,null,null,null,null,null,"A","B","C","D","E"]
[null,null,null,null,null,null,null,null,null,null,null,"PROBABILIDAD","Muy Probable",1,7,13,19,25,6]
[null,"Clase","Características",null,null," Clase","Costo total del daño ( SMMLV[1])",null,null,null,null,null,"Medianamente Probable ",2,8,14,20,26,5]
[1,"1. Poco importantes","Padecimientos ligeros durante un día o menos.",null,null,null,"Organización Pequeña\n≤ 50 ","Organización Mediana\n51 - 499","Organización Grande\n≥ 500",null,null,null,"Bastante Probable",3,9,15,21,27,4]
[2,"2. Limitadas","Lesiones menores, malestar que perdura por una semana o menos.",null,null,"1.      Poco importantes","<2","<4","<8",null,null,null,"Probable",4,10,16,22,28,3]
[3,"3. Graves","Algunas heridas graves, serias complicaciones.",null,null,"2.      Limitadas","2 – 5","4 – 10","8 – 20",null,null,null,"Poco Probable",5,11,17,23,29,2]
[4,"4. Muy graves","Muerte de al menos una persona, y/o varios heridos (10) de gravedad y/o hasta 50 evacuados.",null,null,"3.      Graves","5 – 10","10 – 20","20 – 40",null,null,null,"Improbable",6,12,18,24,30,1]
[5,"5. Catastróficas","Varias muertes,  ≥ 11 heridos graves y/o más de 50 evacuados.",null,null,"4.      Muy graves","10 – 20","20 – 40","40 – 80",null,null,null,null,"Poco\n Importante","Limitada","Graves","Muy Graves","Catastróficas"]
[null,null,null,null,null,"5.      Catastróficas",">20",">40",">80",null,null,null,null,"PONDERACION DE LAS CONSECUENCIAS "]
[null,null,null,null,null,null,null,"[1] Salario Mínimo Mensual Legal Vigente"]
[null,"Clasificación de consecuencias para el ambiente"]
[]
[null,"Clase","Características"]
[null,"1. Poco importantes","No hay contaminación"]
[null,"2. Limitadas","Hay baja contaminación y sus efectos están contenidos."]
[null,"3. Graves","Hay baja o media contaminación y sus efectos están muy difundidos."]
[null,"4. Muy graves","Hay alta contaminación y sus efectos están contenidos."]
[null,"5. Catastróficas","Hay muy alta contaminación y sus efectos están muy difundidos."]
[null,null,null,null,null,0]
[]
[]
[]
[null,"Clasificación según la velocidad de desarrollo"]
[null,"Clase","Características"]
[null,"1.  Advertencia precisa y anticipada","Efectos contenidos/ ningún daño"]
[null,"2.  Media","Alguna propagación/ pocos daños."]
[null,"3.  Alta","Daños considerables/ Efectos contenidos"]
[null,"4.  Sin advertencia","Desconocidos hasta que los efectos se han desarrollado completamente. Efectos inmediatos (explosión)."]
[]
[]
[null,"Escala para Probabilidad"]
[null,"Clase","Cálculo aproximado de la frecuencia"]
[null,"1.      Improbable","Una vez cada 10 a 50 años"]
[null,"2.      Poco probable","Una vez cada 10 a 20 años"]
[null,"3.      Probable","Una vez cada 5 a 10 años"]
[null,"4.      Bastante probable","Una vez cada 1 a 5 años"]
[null,"5.    Medianamente  probable","Varias veces  por año "]
[null,"6.      Muy probable"," Una vez por año"]

{"sheet":"1. IDENTIFICACION DE AMENAZAS","index":2,"n_rows":393,"n_cols":24,"rows_kept":393,"cut":false,"hidden":false,"merged":[[376,11,392,11],[376,13,392,13],[357,11,363,11],[357,13,363,13],[364,11,370,11],[364,13,370,13],[371,11,375,11],[371,13,375,13],[324,11,339,11],[324,13,339,13],[340,11,344,11],[340,13,344,13],[345,11,356,11],[345,13,356,13],[295,11,308,11],[295,13,308,13],[309,11,317,11],[309,13,317,13],[318,11,323,11],[318,13,323,13],[262,11,267,11],[262,13,267,13],[268,11,281,11],[268,13,281,13],[282,11,294,11],[282,13,294,13],[229,11,244,11],[229,13,244,13],[245,11,255,11],[245,13,255,13],[256,11,261,11],[256,13,261,13],[194,11,209,11],[194,13,209,13],[210,11,218,11],[210,13,218,13],[219,11,228,11],[219,13,228,13],[144,11,161,11],[144,13,161,13],[162,11,179,11],[162,13,179,13],[180,11,193,11],[180,13,193,13],[126,11,143,11],[126,13,143,13],[3,19,5,19],[3,20,5,20],[3,21,5,21],[31,0,31,20],[99,11,108,11],[99,13,108,13],[109,11,125,11],[109,13,125,13],[2,19,2,20],[3,22,5,22],[3,23,5,23],[4,14,5,14],[4,15,5,15],[4,16,5,16],[4,17,5,17],[0,0,2,0],[0,1,2,18],[3,0,5,0],[3,1,5,1],[3,2,4,9],[3,10,5,10],[3,13,5,13],[3,14,3,17],[3,18,5,18]]}
[null,"PROCESO \nGESTIÓN DEL TALENTO HUMANO\n\nMATRIZ VALORACIÓN DE RIESGOS DE EMERGENCIA",null,null,null,null,null,null,null,null,null,null,null,null,null,null,null,null,null,"F2.P9.GTH","2026-04-28"]
[null,null,null,null,null,null,null,null,null,null,null,null,null,null,null,null,null,null,null,"Versión 10","Página 1 de 1"]
[null,null,null,null,null,null,null,null,null,null,null,null,null,null,null,null,null,null,null,"Clasificación de la Información \nPública"]
["1. CODIGO AMENAZA","2. AMENAZA\nEste campo se genera automáticamente al presionar el botón correspondiente","3. PISO\nMarque con una X ",null,null,null,null,null,null,null,"4. ÁREA / PROCESOS / DEPENDENCIAS\nRegistrar el área, proceso o dependencia específica donde se presenta la amenaza, de acuerdo con el piso seleccionado. ",null,null,"5. CONSECUENCIAS\nEste campo se genera automáticamente al presionar el botón correspondiente","6. GRAVEDAD \nEstas casillas se generan automáticamente al presionar  las opciones de los botones correspondiente",null,null,null,"7. PROBABILIDAD DE OCURRENCIA\nEste campo se genera automáticamente al presionar el botón correspondiente","8. PRIORIDAD\nEste campo se genera automáticamente al presionar el botón correspondiente","9. PONDERACIÓN DE LAS CONSECUENCIAS\nEste campo se genera automáticamente al presionar el botón correspondiente","Índice Ponderación de las Consecuencias","Índice Probabilidad","Índice Matriz"]
[null,null,null,null,null,null,null,null,null,null,null,null,null,null,"VIDA","AMBIENTE","PROPIEDAD","VELOCIDAD DE DESARROLLO"]
[null,null,1,2,3,4,5,6,7,8]
["A-1",null,null,null,null,null,null,null,null,null,null,null,null,{"$f":"IF(B7=\"\",\"\",VLOOKUP(B7,$L$100:$N$393,3,0))","v":""},null,null,null,null,null,{"$f":"IF((ROUNDDOWN((((O7*30)+(P7*30)+(Q7*20)+(R7*20))/80),0))=0,\"\",(ROUNDDOWN((((O7*30)+(P7*30)+(Q7*20)+(R7*20))/80),0)))","v":""},{"$f":"+IF(O7<>\"\",IF(T7=5,\"E\",IF(T7=4,\"D\",IF(T7=3,\"C\",IF(T7=2,\"B\",\"A\")))),IF(P7<>\"\",IF(T7=5,\"E\",IF(T7=4,\"D\",IF(T7=3,\"C\",IF(T7=2,\"B\",\"A\")))),IF(Q7<>\"\",IF(T7=5,\"E\",IF(T7=4,\"D\",IF(T7=3,\"C\",IF(T7=2,\"B\",\"A\")))),IF(R7<>\"\",IF(T7=5,\"E\",IF(T7=4,\"D\",IF(T7=3,\"C\",IF(T7=2,\"B\",\"A\")))),IF(S7<>\"\",IF(T7=5,\"E\",IF(T7=4,\"D\",IF(T7=3,\"C\",IF(T7=2,\"B\",\"A\")))),IF(T7<>\"\",IF(T7=5,\"E\",IF(T7=4,\"D\",IF(T7=3,\"C\",IF(T7=2,\"B\",\"A\")))),\"\"))))))","v":""},{"$f":"+IF(U7=\"A\",1,IF(U7=\"B\",2,IF(U7=\"C\",3,IF(U7=\"D\",4,IF(U7=\"E\",5,\"\")))))","v":""},{"$f":"+IF(S7=6,1, IF(S7=5,2,IF(S7=4,3,IF(S7=3,4,IF(S7=2,5,IF(S7=1,6,\"\"))))))","v":""},{"$f":"IFERROR(+INDEX('VALORACION GRAVEDAD (2)'!$N$3:$R$8,W7,'1. IDENTIFICACION DE AMENAZAS'!V7),\"\")","v":""}]
["A-2",null,null,null,null,null,null,null,null,null,null,null,null,"",null,null,null,null,null,"","","","",{"$f":"IFERROR(+INDEX('VALORACION GRAVEDAD (2)'!$N$3:$R$8,W8,'1. IDENTIFICACION DE AMENAZAS'!V8),\"\")","v":""}]
["A-3",null,null,null,null,null,null,null,null,null,null,null,null,{"$f":"IF(B9=\"\",\"\",VLOOKUP(B9,$L$100:$N$393,3,0))","v":""},null,null,null,null,null,"","","","",{"$f":"IFERROR(+INDEX('VALORACION GRAVEDAD (2)'!$N$3:$R$8,W9,'1. IDENTIFICACION DE AMENAZAS'!V9),\"\")","v":""}]
["A-4",null,null,null,null,null,null,null,null,null,null,null,null,"",null,null,null,null,null,"","","","",{"$f":"IFERROR(+INDEX('VALORACION GRAVEDAD (2)'!$N$3:$R$8,W10,'1. IDENTIFICACION DE AMENAZAS'!V10),\"\")","v":""}]
["A-5",null,null,null,null,null,null,null,null,null,null,null,null,"",null,null,null,null,null,"","","","",{"$f":"IFERROR(+INDEX('VALORACION GRAVEDAD (2)'!$N$3:$R$8,W11,'1. IDENTIFICACION DE AMENAZAS'!V11),\"\")","v":""}]
["A-6",null,null,null,null,null,null,null,null,null,null,null,null,"",null,null,null,null,null,"","","","",{"$f":"IFERROR(+INDEX('VALORACION GRAVEDAD (2)'!$N$3:$R$8,W12,'1. IDENTIFICACION DE AMENAZAS'!V12),\"\")","v":""}]
["A-7",null,null,null,null,null,null,null,null,null,null,null,null,"",null,null,null,null,null,"","","","",{"$f":"IFERROR(+INDEX('VALORACION GRAVEDAD (2)'!$N$3:$R$8,W13,'1. IDENTIFICACION DE AMENAZAS'!V13),\"\")","v":""}]
["A-8",null,null,null,null,null,null,null,null,null,null,null,null,"",null,null,null,null,null,"","","","",{"$f":"IFERROR(+INDEX('VALORACION GRAVEDAD (2)'!$N$3:$R$8,W14,'1. IDENTIFICACION DE AMENAZAS'!V14),\"\")","v":""}]
["A-9",null,null,null,null,null,null,null,null,null,null,null,null,"",null,null,null,null,null,"","","","",{"$f":"IFERROR(+INDEX('VALORACION GRAVEDAD (2)'!$N$3:$R$8,W15,'1. IDENTIFICACION DE AMENAZAS'!V15),\"\")","v":""}]
["A-10",null,null,null,null,null,null,null,null,null,null,null,null,"",null,null,null,null,null,"","","","",{"$f":"IFERROR(+INDEX('VALORACION GRAVEDAD (2)'!$N$3:$R$8,W16,'1. IDENTIFICACION DE AMENAZAS'!V16),\"\")","v":""}]
["A-11",null,null,null,null,null,null,null,null,null,null,null,null,"",null,null,null,null,null,"","","","",{"$f":"IFERROR(+INDEX('VALORACION GRAVEDAD (2)'!$N$3:$R$8,W17,'1. IDENTIFICACION DE AMENAZAS'!V17),\"\")","v":""}]
["A-12",null,null,null,null,null,null,null,null,null,null,null,null,"",null,null,null,null,null,"","","","",{"$f":"IFERROR(+INDEX('VALORACION GRAVEDAD (2)'!$N$3:$R$8,W18,'1. IDENTIFICACION DE AMENAZAS'!V18),\"\")","v":""}]
["A-13",null,null,null,null,null,null,null,null,null,null,null,null,"",null,null,null,null,null,"","","","",{"$f":"IFERROR(+INDEX('VALORACION GRAVEDAD (2)'!$N$3:$R$8,W19,'1. IDENTIFICACION DE AMENAZAS'!V19),\"\")","v":""}]
["A-14",null,null,null,null,null,null,null,null,null,null,null,null,"",null,null,null,null,null,"","","","",{"$f":"IFERROR(+INDEX('VALORACION GRAVEDAD (2)'!$N$3:$R$8,W20,'1. IDENTIFICACION DE AMENAZAS'!V20),\"\")","v":""}]
["A-15",null,null,null,null,null,null,null,null,null,null,null,null,"",null,null,null,null,null,"","","","",{"$f":"IFERROR(+INDEX('VALORACION GRAVEDAD (2)'!$N$3:$R$8,W21,'1. IDENTIFICACION DE AMENAZAS'!V21),\"\")","v":""}]
["A-16",null,null,null,null,null,null,null,null,null,null,null,null,"",null,null,null,null,null,"","","","",{"$f":"IFERROR(+INDEX('VALORACION GRAVEDAD (2)'!$N$3:$R$8,W22,'1. IDENTIFICACION DE AMENAZAS'!V22),\"\")","v":""}]
["A-17",null,null,null,null,null,null,null,null,null,null,null,null,"",null,null,null,null,null,"","","","",{"$f":"IFERROR(+INDEX('VALORACION GRAVEDAD (2)'!$N$3:$R$8,W23,'1. IDENTIFICACION DE AMENAZAS'!V23),\"\")","v":""}]
["A-18",null,null,null,null,null,null,null,null,null,null,null,null,"",null,null,null,null,null,"","","","",{"$f":"IFERROR(+INDEX('VALORACION GRAVEDAD (2)'!$N$3:$R$8,W24,'1. IDENTIFICACION DE AMENAZAS'!V24),\"\")","v":""}]
["A-19",null,null,null,null,null,null,null,null,null,null,null,null,"",null,null,null,null,null,"","","","",{"$f":"IFERROR(+INDEX('VALORACION GRAVEDAD (2)'!$N$3:$R$8,W25,'1. IDENTIFICACION DE AMENAZAS'!V25),\"\")","v":""}]
["A-20",null,null,null,null,null,null,null,null,null,null,null,null,"",null,null,null,null,null,"","","","",{"$f":"IFERROR(+INDEX('VALORACION GRAVEDAD (2)'!$N$3:$R$8,W26,'1. IDENTIFICACION DE AMENAZAS'!V26),\"\")","v":""}]
["A-21",null,null,null,null,null,null,null,null,null,null,null,null,"",null,null,null,null,null,"","","","",{"$f":"IFERROR(+INDEX('VALORACION GRAVEDAD (2)'!$N$3:$R$8,W27,'1. IDENTIFICACION DE AMENAZAS'!V27),\"\")","v":""}]
["A-22",null,null,null,null,null,null,null,null,null,null,null,null,"",null,null,null,null,null,"","","","",{"$f":"IFERROR(+INDEX('VALORACION GRAVEDAD (2)'!$N$3:$R$8,W28,'1. IDENTIFICACION DE AMENAZAS'!V28),\"\")","v":""}]
["A-23",null,null,null,null,null,null,null,null,null,null,null,null,"",null,null,null,null,null,"","","","",{"$f":"IFERROR(+INDEX('VALORACION GRAVEDAD (2)'!$N$3:$R$8,W29,'1. IDENTIFICACION DE AMENAZAS'!V29),\"\")","v":""}]
["A-24",null,null,null,null,null,null,null,null,null,null,null,null,"",null,null,null,null,null,"","","","",{"$f":"IFERROR(+INDEX('VALORACION GRAVEDAD (2)'!$N$3:$R$8,W30,'1. IDENTIFICACION DE AMENAZAS'!V30),\"\")","v":""}]
["A-25",null,null,null,null,null,null,null,null,null,null,null,null,"",null,null,null,null,null,"","","","",{"$f":"IFERROR(+INDEX('VALORACION GRAVEDAD (2)'!$N$3:$R$8,W31,'1. IDENTIFICACION DE AMENAZAS'!V31),\"\")","v":""}]
["¡Antes de imprimir este documento… piense en el medio ambiente!\nCualquier copia impresa de este documento se considera como COPIA NO CONTROLADA.\nLOS DATOS PROPORCIONADOS SERAN TRATADOS DE ACUERDO A LA POLITICA DE TRATAMIENTO DE DATOS PERSONALES DEL ICBF Y A LA LEY 1581 DE 2012\"                  "]
[]
[]
[]
[]
[]
[]
[]
[]
[]
[]
[]
[]
[]
[]
[]
[]
[]
[]
[]
[]
[]
[]
[]
[]
[]
[]
[]
[]
[]
[]
[]
[]
[]
[]
[]
[]
[]
[]
[]
[]
[]
[]
[]
[]
[]
[]
[]
[]
[]
[]
[]
[]
[]
[]
[]
[]
[]
[]
[]
[]
[]
[]
[]
[]
[]
[]
[]
[null,null,null,null,null,null,null,null,null,null,null,"SEQUIAS","Escases de agua\n",{"$f":"+CONCATENATE(M100,IF(M101<>\"\",\" *\",\"\"),M101,IF(M102<>\"\",\" *\",\"\"),M102,IF(M103<>\"\",\"*\",\"\"),M103,IF(M104<>\"\",\" *\",\"\"),M104,IF(M105<>\"\",\"*\",\"\"),M105,IF(M106<>\"\",\" *\",\"\"),M106,IF(M107<>\"\",\"*\",\"\"),M107,IF(M108<>\"\",\"*\",\"\"),M108,IF(M109<>\"\",\"*\",\"\"),M109)","v":"Escases de agua\n *Escases de agua\n *Aparición de incendios\n*Desplazamiento de fauna\n *Incremento de vectores\n*Desabastecimiento de alimentos\n *Incremento de contaminación\n*Pérdidas Económicas\n*Enfermedades\n*Suspensión de suministro de redes físicas ( Energía, gas, agua e internet)\n"}]
[null,null,null,null,null,null,null,null,null,null,null,null,"Escases de agua\n"]
[null,null,null,null,null,null,null,null,null,null,null,null,"Aparición de incendios\n"]
[null,null,null,null,null,null,null,null,null,null,null,null,"Desplazamiento de fauna\n"]
[null,null,null,null,null,null,null,null,null,null,null,null,"Incremento de vectores\n"]
[null,null,null,null,null,null,null,null,null,null,null,null,"Desabastecimiento de alimentos\n"]
[null,null,null,null,null,null,null,null,null,null,null,null,"Incremento de contaminación\n"]
[null,null,null,null,null,null,null,null,null,null,null,null,"Pérdidas Económicas\n"]
[null,null,null,null,null,null,null,null,null,null,null,null,"Enfermedades\n"]
[null,null,null,null,null,null,null,null,null,null,null,null,"Suspensión de suministro de redes físicas ( Energía, gas, agua e internet)\n"]
[null,null,null,null,null,null,null,null,null,null,null,"INUNDACIONES","Afectación Salud Mental\n",{"$f":"+CONCATENATE(M110,IF(M111<>\"\",\" *\",\"\"),M111,IF(M112<>\"\",\" *\",\"\"),M112,IF(M113<>\"\",\"*\",\"\"),M113,IF(M114<>\"\",\"*\",\"\"),M114,IF(M115<>\"\",\" *\",\"\"),M115,IF(M116<>\"\",\" *\",\"\"),M116,IF(M117<>\"\",\" *\",\"\"),M117,IF(M118<>\"\",\" *\",\"\"),M118,IF(M119<>\"\",\"*\",\"\"),M119,IF(M120<>\"\",\"*\",\"\"),M120,IF(M121<>\"\",\"*\",\"\"),M121,IF(M122<>\"\",\" *\",\"\"),M122,IF(M123<>\"\",\"*\",\"\"),M123,IF(M124<>\"\",\" *\",\"\"),M124,IF(M125<>\"\",\" *\",\"\"),M125,IF(M126<>\"\",\" *\",\"\"),M126)","v":"Afectación Salud Mental\n *Afectación directa de los registros documentales por deterioro o pérdida\n *Pérdida de Comunicación\n"}]
[]
[]
[]
[]
[null,null,null,null,null,null,null,null,null,null,null,null,"Afectación directa de los registros documentales por deterioro o pérdida\n"]
[null,null,null,null,null,null,null,null,null,null,null,null,"Pérdida de Comunicación\n"]
[]
[]
[]
[]
[]
[]
[]
[]
[]
[]
[null,null,null,null,null,null,null,null,null,null,null,"AVALANCHAS","Agua en las instalaciones\n",{"$f":"+CONCATENATE(M127,IF(M128<>\"\",\" *\",\"\"),M128,IF(M129<>\"\",\" *\",\"\"),M129,IF(M130<>\"\",\"*\",\"\"),M130,IF(M131<>\"\",\" *\",\"\"),M131,IF(M132<>\"\",\"*\",\"\"),M132,IF(M133<>\"\",\" *\",\"\"),M133,IF(M134<>\"\",\" *\",\"\"),M134,IF(M135<>\"\",\"*\",\"\"),M135,IF(M136<>\"\",\" *\",\"\"),M136,IF(M137<>\"\",\" *\",\"\"),M137,IF(M138<>\"\",\"*\",\"\"),M138,IF(M139<>\"\",\" *\",\"\"),M139,IF(M140<>\"\",\" *\",\"\"),M140,IF(M141<>\"\",\" *\",\"\"),M141,IF(M142<>\"\",\" *\",\"\"),M142,IF(M143<>\"\",\"*\",\"\"),M143,IF(M144<>\"\",\"*\",\"\"),M144)","v":"Agua en las instalaciones\n *Agua en las instalaciones\n *Material de arrastre en las Instalaciones\n*Afectacion directa de los registros documentales por deterioro o pérdida\n *Cortos circuitos\n*Pérdida de Comunicación\n *Pérdida estructural\n *Enfermedades\n*Lesiones\n *Pérdidas Humanas\n *Daño probable en equipos de oficina y muebles\n*Incremento de vectores\n *Incremento de contaminación\n *Incremento de volúmenes de residuos\n *Pérdidas Económicas\n *Interrupcion de Operación o servicio\n*Suspensión de suministro de redes físicas (Energía, gas, agua e internet)\n*Afectación Salud Mental\n"}]
[null,null,null,null,null,null,null,null,null,null,null,null,"Agua en las instalaciones\n"]
[null,null,null,null,null,null,null,null,null,null,null,null,"Material de arrastre en las Instalaciones\n"]
[null,null,null,null,null,null,null,null,null,null,null,null,"Afectacion directa de los registros documentales por deterioro o pérdida\n"]
[null,null,null,null,null,null,null,null,null,null,null,null,"Cortos circuitos\n"]
[null,null,null,null,null,null,null,null,null,null,null,null,"Pérdida de Comunicación\n"]
[null,null,null,null,null,null,null,null,null,null,null,null,"Pérdida estructural\n"]
[null,null,null,null,null,null,null,null,null,null,null,null,"Enfermedades\n"]
[null,null,null,null,null,null,null,null,null,null,null,null,"Lesiones\n"]
[null,null,null,null,null,null,null,null,null,null,null,null,"Pérdidas Humanas\n"]
[null,null,null,null,null,null,null,null,null,null,null,null,"Daño probable en equipos de oficina y muebles\n"]
[null,null,null,null,null,null,null,null,null,null,null,null,"Incremento de vectores\n"]
[null,null,null,null,null,null,null,null,null,null,null,null,"Incremento de contaminación\n"]
[null,null,null,null,null,null,null,null,null,null,null,null,"Incremento de volúmenes de residuos\n"]
[null,null,null,null,null,null,null,null,null,null,null,null,"Pérdidas Económicas\n"]
[null,null,null,null,null,null,null,null,null,null,null,null,"Interrupcion de Operación o servicio\n"]
[null,null,null,null,null,null,null,null,null,null,null,null,"Suspensión de suministro de redes físicas (Energía, gas, agua e internet)\n"]
[null,null,null,null,null,null,null,null,null,null,null,null,"Afectación Salud Mental\n"]
[null,null,null,null,null,null,null,null,null,null,null,"MOVIMIENTOS EN MASA","Pérdida total o parcial de vehículos o autopartes\n",{"$f":"+CONCATENATE(M145,IF(M146<>\"\",\" *\",\"\"),M146,IF(M147<>\"\",\" *\",\"\"),M147,IF(M148<>\"\",\" *\",\"\"),M148,IF(M149<>\"\",\" *\",\"\"),M149,IF(M150<>\"\",\" *\",\"\"),M150,IF(M151<>\"\",\" *\",\"\"),M151,IF(M152<>\"\",\" *\",\"\"),M152,IF(M153<>\"\",\" *\",\"\"),M153,IF(M154<>\"\",\"*\",\"\"),M154,IF(M155<>\"\",\" *\",\"\"),M155,IF(M156<>\"\",\"*\",\"\"),M156,IF(M157<>\"\",\" *\",\"\"),M157,IF(M158<>\"\",\" *\",\"\"),M158,IF(M159<>\"\",\"*\",\"\"),M159,IF(M160<>\"\",\" *\",\"\"),M160,IF(M161<>\"\",\"*\",\"\"),M161,IF(M162<>\"\",\"*\",\"\"),M162)","v":"Pérdida total o parcial de vehículos o autopartes\n *Cortos circuitos\n *Pérdida de Comunicación\n *Pérdida estructural\n *Lesiones\n *Pérdidas Humanas\n*Daño probable en equipos de oficina y muebles\n *Pérdidas Económicas\n*Interrupción de Operación o servicio\n *Suspensión de suministro de redes físicas (Energía, gas, agua e internet)\n*Afectación Salud Mental\n*Afectación de vehículos\n"}]
[]
[]
[null,null,null,null,null,null,null,null,null,null,null,null,"Cortos circuitos\n"]
[null,null,null,null,null,null,null,null,null,null,null,null,"Pérdida de Comunicación\n"]
[null,null,null,null,null,null,null,null,null,null,null,null,"Pérdida estructural\n"]
[]
[null,null,null,null,null,null,null,null,null,null,null,null,"Lesiones\n"]
[null,null,null,null,null,null,null,null,null,null,null,null,"Pérdidas Humanas\n"]
[null,null,null,null,null,null,null,null,null,null,null,null,"Daño probable en equipos de oficina y muebles\n"]
[]
[]
[]
[null,null,null,null,null,null,null,null,null,null,null,null,"Pérdidas Económicas\n"]
[null,null,null,null,null,null,null,null,null,null,null,null,"Interrupción de Operación o servicio\n"]
[null,null,null,null,null,null,null,null,null,null,null,null,"Suspensión de suministro de redes físicas (Energía, gas, agua e internet)\n"]
[null,null,null,null,null,null,null,null,null,null,null,null,"Afectación Salud Mental\n"]
[null,null,null,null,null,null,null,null,null,null,null,null,"Afectación de vehículos\n"]
[null,null,null,null,null,null,null,null,null,null,null,"ACTIVIDAD VOLCÁNICA","Material de arrastre en las instalaciones\n",{"$f":"+CONCATENATE(M163,IF(M164<>\"\",\" *\",\"\"),M164,IF(M165<>\"\",\" *\",\"\"),M165,IF(M166<>\"\",\" *\",\"\"),M166,IF(M167<>\"\",\"*\",\"\"),M167,IF(M168<>\"\",\"*\",\"\"),M168,IF(M169<>\"\",\"*\",\"\"),M169,IF(M170<>\"\",\"*\",\"\"),M170,IF(M171<>\"\",\"*\",\"\"),M171,IF(M172<>\"\",\" *\",\"\"),M172,IF(M173<>\"\",\" *\",\"\"),M173,IF(M174<>\"\",\"*\",\"\"),M174,IF(M175<>\"\",\"*\",\"\"),M175,IF(M176<>\"\",\" *\",\"\"),M176,IF(M177<>\"\",\" *\",\"\"),M177,IF(M178<>\"\",\" *\",\"\"),M178,IF(M179<>\"\",\" *\",\"\"),M179,IF(M180<>\"\",\" *\",\"\"),M180)","v":"Material de arrastre en las instalaciones\n *Material de arrastre en las instalaciones\n *Afectación directa de los registros documentales por deterioro o pérdida\n *Cortos Circuitos\n*Pérdida de comunicación\n*Pérdida estructural\n*Enfermedades\n*Lesiones\n*Pérdidas Humanas\n *Daño probable en equipos de oficina y muebles\n *Incremento de contaminación\n*Incremento de vólumenes de residuos\n*Pérdidas Económicas\n *Interrupción de Operación o servicio\n *Suspensión de suministros de redes físicas (Energía, gas, agua e internet)\n *Afectación Salud Mental\n *Caída de Cenizas\n *Caída de Piroclastos\n"}]
[null,null,null,null,null,null,null,null,null,null,null,null,"Material de arrastre en las instalaciones\n"]
[null,null,null,null,null,null,null,null,null,null,null,null,"Afectación directa de los registros documentales por deterioro o pérdida\n"]
[null,null,null,null,null,null,null,null,null,null,null,null,"Cortos Circuitos\n"]
[null,null,null,null,null,null,null,null,null,null,null,null,"Pérdida de comunicación\n"]
[null,null,null,null,null,null,null,null,null,null,null,null,"Pérdida estructural\n"]
[null,null,null,null,null,null,null,null,null,null,null,null,"Enfermedades\n"]
[null,null,null,null,null,null,null,null,null,null,null,null,"Lesiones\n"]
[null,null,null,null,null,null,null,null,null,null,null,null,"Pérdidas Humanas\n"]
[null,null,null,null,null,null,null,null,null,null,null,null,"Daño probable en equipos de oficina y muebles\n"]
[null,null,null,null,null,null,null,null,null,null,null,null,"Incremento de contaminación\n"]
[null,null,null,null,null,null,null,null,null,null,null,null,"Incremento de vólumenes de residuos\n"]
[null,null,null,null,null,null,null,null,null,null,null,null,"Pérdidas Económicas\n"]
[null,null,null,null,null,null,null,null,null,null,null,null,"Interrupción de Operación o servicio\n"]
[null,null,null,null,null,null,null,null,null,null,null,null,"Suspensión de suministros de redes físicas (Energía, gas, agua e internet)\n"]
[null,null,null,null,null,null,null,null,null,null,null,null,"Afectación Salud Mental\n"]
[null,null,null,null,null,null,null,null,null,null,null,null,"Caída de Cenizas\n"]
[null,null,null,null,null,null,null,null,null,null,null,null,"Caída de Piroclastos\n"]
[null,null,null,null,null,null,null,null,null,null,null,"ACTIVIDAD SISMICA","Afectación de vehículos\n",{"$f":"+CONCATENATE(M181,IF(M182<>\"\",\" *\",\"\"),M182,IF(M183<>\"\",\"*\",\"\"),M183,IF(M184<>\"\",\" *\",\"\"),M184,IF(M185<>\"\",\" *\",\"\"),M185,IF(M186<>\"\",\" *\",\"\"),M186,IF(M187<>\"\",\"*\",\"\"),M187,IF(M188<>\"\",\" *\",\"\"),M188,IF(M189<>\"\",\" *\",\"\"),M189,IF(M190<>\"\",\" *\",\"\"),M190,IF(M191<>\"\",\" *\",\"\"),M191,IF(M192<>\"\",\" *\",\"\"),M192,IF(M193<>\"\",\"*\",\"\"),M193,IF(M194<>\"\",\"*\",\"\"),M194)","v":"Afectación de vehículos\n *Pérdida de Comunicación\n*Pérdida estructural\n *Lesiones\n *Pérdidas Humanas\n*Daño probable en equipos de oficina y muebles\n *Pérdidas Económicas\n *Interrupción de operación o servicio\n *Suspensión de suministros de redes físicas (Energía, gas, agua e internet)\n*Afectación Salud Mental\n*Afectación de vehículos\n"}]
[null,null,null,null,null,null,null,null,null,null,null,null,"Pérdida de Comunicación\n"]
[null,null,null,null,null,null,null,null,null,null,null,null,"Pérdida estructural\n"]
[]
[null,null,null,null,null,null,null,null,null,null,null,null,"Lesiones\n"]
[null,null,null,null,null,null,null,null,null,null,null,null,"Pérdidas Humanas\n"]
[null,null,null,null,null,null,null,null,null,null,null,null,"Daño probable en equipos de oficina y muebles\n"]
[]
[]
[null,null,null,null,null,null,null,null,null,null,null,null,"Pérdidas Económicas\n"]
[null,null,null,null,null,null,null,null,null,null,null,null,"Interrupción de operación o servicio\n"]
[null,null,null,null,null,null,null,null,null,null,null,null,"Suspensión de suministros de redes físicas (Energía, gas, agua e internet)\n"]
[null,null,null,null,null,null,null,null,null,null,null,null,"Afectación Salud Mental\n"]
[null,null,null,null,null,null,null,null,null,null,null,null,"Afectación de vehículos\n"]
[null,null,null,null,null,null,null,null,null,null,null,"TSUNAMI",null,{"$f":"+CONCATENATE(M195,IF(M196<>\"\",\" *\",\"\"),M196,IF(M197<>\"\",\" *\",\"\"),M197,IF(M198<>\"\",\"*\",\"\"),M198,IF(M199<>\"\",\" *\",\"\"),M199,IF(M200<>\"\",\"*\",\"\"),M200,IF(M201<>\"\",\" *\",\"\"),M201,IF(M202<>\"\",\" *\",\"\"),M202,IF(M203<>\"\",\" *\",\"\"),M203,IF(M204<>\"\",\" *\",\"\"),M204,IF(M205<>\"\",\" *\",\"\"),M205,IF(M206<>\"\",\" *\",\"\"),M206,IF(M207<>\"\",\"*\",\"\"),M207,IF(M208<>\"\",\"*\",\"\"),M208,IF(M209<>\"\",\" *\",\"\"),M209,IF(M210<>\"\",\" *\",\"\"),M210)","v":" *Agua en las instalaciones\n *Material de arrastre en las instalaciones\n*Afectación directa de los registros documentales por deterioro o pérdida\n *Perdida de Comunicación\n*Pérdida estructural\n *Enfermedades\n *Lesiones\n *Pérdidas Humanas\n *Daño probable en equipos de oficina  y muebles\n *Incremento de contaminación\n *Incremento de colúmenes de residuos\n*Pérdidas Económicas\n*Interrupción de operación o servicio\n *Suspensión de suministro de resdes físicas (Energía, gas, agua e internet)\n *Afectación Salud Mental\n"}]
[null,null,null,null,null,null,null,null,null,null,null,null,"Agua en las instalaciones\n"]
[null,null,null,null,null,null,null,null,null,null,null,null,"Material de arrastre en las instalaciones\n"]
[null,null,null,null,null,null,null,null,null,null,null,null,"Afectación directa de los registros documentales por deterioro o pérdida\n"]
[null,null,null,null,null,null,null,null,null,null,null,null,"Perdida de Comunicación\n"]
[null,null,null,null,null,null,null,null,null,null,null,null,"Pérdida estructural\n"]
[null,null,null,null,null,null,null,null,null,null,null,null,"Enfermedades\n"]
[null,null,null,null,null,null,null,null,null,null,null,null,"Lesiones\n"]
[null,null,null,null,null,null,null,null,null,null,null,null,"Pérdidas Humanas\n"]
[null,null,null,null,null,null,null,null,null,null,null,null,"Daño probable en equipos de oficina  y muebles\n"]
[null,null,null,null,null,null,null,null,null,null,null,null,"Incremento de contaminación\n"]
[null,null,null,null,null,null,null,null,null,null,null,null,"Incremento de colúmenes de residuos\n"]
[null,null,null,null,null,null,null,null,null,null,null,null,"Pérdidas Económicas\n"]
[null,null,null,null,null,null,null,null,null,null,null,null,"Interrupción de operación o servicio\n"]
[null,null,null,null,null,null,null,null,null,null,null,null,"Suspensión de suministro de resdes físicas (Energía, gas, agua e internet)\n"]
[null,null,null,null,null,null,null,null,null,null,null,null,"Afectación Salud Mental\n"]
[null,null,null,null,null,null,null,null,null,null,null,"VENDAVAL","Pérdida total o parcial de vehículos o autopartes\n",{"$f":"+CONCATENATE(M211,IF(M212<>\"\",\" *\",\"\"),M212,IF(M213<>\"\",\" *\",\"\"),M213,IF(M214<>\"\",\" *\",\"\"),M214,IF(M215<>\"\",\"*\",\"\"),M215,IF(M216<>\"\",\"*\",\"\"),M216,IF(M217<>\"\",\" *\",\"\"),M217,IF(M218<>\"\",\" *\",\"\"),M218,IF(M219<>\"\",\" *\",\"\"),M219)","v":"Pérdida total o parcial de vehículos o autopartes\n *Lesiones\n *Pérdidas Humanas\n *Daño probable en equipos de oficina y muebles\n*Pérdidas Económicas\n*Interrupción de operaciòn o servicio\n *Afectación de vehículos\n"}]
[null,null,null,null,null,null,null,null,null,null,null,null,"Lesiones\n"]
[null,null,null,null,null,null,null,null,null,null,null,null,"Pérdidas Humanas\n"]
[null,null,null,null,null,null,null,null,null,null,null,null,"Daño probable en equipos de oficina y muebles\n"]
[null,null,null,null,null,null,null,null,null,null,null,null,"Pérdidas Económicas\n"]
[null,null,null,null,null,null,null,null,null,null,null,null,"Interrupción de operaciòn o servicio\n"]
[]
[]
[null,null,null,null,null,null,null,null,null,null,null,null,"Afectación de vehículos\n"]
[null,null,null,null,null,null,null,null,null,null,null,"HURACAN","Pérdida de Comunicación\n",{"$f":"+CONCATENATE(M220,IF(M221<>\"\",\" *\",\"\"),M221,IF(M222<>\"\",\" *\",\"\"),M222,IF(M223<>\"\",\" *\",\"\"),M223,IF(M224<>\"\",\" *\",\"\"),M224,IF(M225<>\"\",\" *\",\"\"),M225,IF(M226<>\"\",\" *\",\"\"),M226,IF(M227<>\"\",\" *\",\"\"),M227,IF(M228<>\"\",\" *\",\"\"),M228,IF(M229<>\"\",\" *\",\"\"),M229)","v":"Pérdida de Comunicación\n *Pérdida de Comunicación\n *Pérdida estructural\n *Lesiones\n *Pérdidas Humanas\n *Daño probable en equipos de oficina y muebles\n *Pérdidas Económicas\n *Interrupción de operación o servicio\n *Suspensión de suministros de redes físicas (Energía, gas, agua e internet)\n *Afectación Salud Mental\n"}]
[null,null,null,null,null,null,null,null,null,null,null,null,"Pérdida de Comunicación\n"]
[null,null,null,null,null,null,null,null,null,null,null,null,"Pérdida estructural\n"]
[null,null,null,null,null,null,null,null,null,null,null,null,"Lesiones\n"]
[null,null,null,null,null,null,null,null,null,null,null,null,"Pérdidas Humanas\n"]
[null,null,null,null,null,null,null,null,null,null,null,null,"Daño probable en equipos de oficina y muebles\n"]
[null,null,null,null,null,null,null,null,null,null,null,null,"Pérdidas Económicas\n"]
[null,null,null,null,null,null,null,null,null,null,null,null,"Interrupción de operación o servicio\n"]
[null,null,null,null,null,null,null,null,null,null,null,null,"Suspensión de suministros de redes físicas (Energía, gas, agua e internet)\n"]
[null,null,null,null,null,null,null,null,null,null,null,null,"Afectación Salud Mental\n"]
[null,null,null,null,null,null,null,null,null,null,null,"ALTAS PRECIPITACIONES","Pérdida total o parcial de vehículos o autopartes\n",{"$f":"+CONCATENATE(M230,IF(M231<>\"\",\" *\",\"\"),M231,IF(M232<>\"\",\"*\",\"\"),M232,IF(M233<>\"\",\" *\",\"\"),M233,IF(M234<>\"\",\" *\",\"\"),M234,IF(M235<>\"\",\"*\",\"\"),M235,IF(M236<>\"\",\" *\",\"\"),M236,IF(M237<>\"\",\" *\",\"\"),M237,IF(M238<>\"\",\" *\",\"\"),M238,IF(M239<>\"\",\"*\",\"\"),M239,IF(M240<>\"\",\" *\",\"\"),M240,IF(M241<>\"\",\"*\",\"\"),M241,IF(M242<>\"\",\" *\",\"\"),M242,IF(M243<>\"\",\" *\",\"\"),M243,IF(M244<>\"\",\" *\",\"\"),M244,IF(M245<>\"\",\" *\",\"\"),M245)","v":"Pérdida total o parcial de vehículos o autopartes\n *Deterioro en la infraestructura\n*Enfermedades\n *Lesiones\n *Afectación directa de los registros documentales por deterioro o pérdida\n *Cortos Circuitos\n *Daño probable en equipos de oficina y muebles\n *Incremento de vectores\n*Incremento de contaminación\n *Pérdidas Económicas\n *Afectación de vehículos\n"}]
[null,null,null,null,null,null,null,null,null,null,null,null,"Deterioro en la infraestructura\n"]
[null,null,null,null,null,null,null,null,null,null,null,null,"Enfermedades\n"]
[null,null,null,null,null,null,null,null,null,null,null,null,"Lesiones\n"]
[null,null,null,null,null,null,null,null,null,null,null,null,"Afectación directa de los registros documentales por deterioro o pérdida\n"]
[]
[null,null,null,null,null,null,null,null,null,null,null,null,"Cortos Circuitos\n"]
[null,null,null,null,null,null,null,null,null,null,null,null,"Daño probable en equipos de oficina y muebles\n"]
[null,null,null,null,null,null,null,null,null,null,null,null,"Incremento de vectores\n"]
[null,null,null,null,null,null,null,null,null,null,null,null,"Incremento de contaminación\n"]
[]
[]
[null,null,null,null,null,null,null,null,null,null,null,null,"Pérdidas Económicas\n"]
[]
[]
[null,null,null,null,null,null,null,null,null,null,null,null,"Afectación de vehículos\n"]
[null,null,null,null,null,null,null,null,null,null,null,"TORMENTA ELECTRICA","Enfermedades\n",{"$f":"+CONCATENATE(M246,IF(M247<>\"\",\" *\",\"\"),M247,IF(M248<>\"\",\"*\",\"\"),M248,IF(M249<>\"\",\" *\",\"\"),M249,IF(M250<>\"\",\"*\",\"\"),M250,IF(M251<>\"\",\"*\",\"\"),M251,IF(M252<>\"\",\" *\",\"\"),M252,IF(M253<>\"\",\"*\",\"\"),M253,IF(M254<>\"\",\"*\",\"\"),M254,IF(M255<>\"\",\" *\",\"\"),M255,IF(M256<>\"\",\" *\",\"\"),M256)","v":"Enfermedades\n *Lesiones\n *Pérdida de comunicación\n*Cortos Circuitos\n*Daño Probable en equipos de oficina y muebles\n *Interrupción de operación o servicio\n*Pérdidas Económicas\n*Suspensión de suministros de redes físicas (Energía, gas agua e internet)\n *Afectación Salud Mental\n *Afectación en vehiculos\n"}]
[null,null,null,null,null,null,null,null,null,null,null,null,"Lesiones\n"]
[]
[null,null,null,null,null,null,null,null,null,null,null,null,"Pérdida de comunicación\n"]
[null,null,null,null,null,null,null,null,null,null,null,null,"Cortos Circuitos\n"]
[null,null,null,null,null,null,null,null,null,null,null,null,"Daño Probable en equipos de oficina y muebles\n"]
[null,null,null,null,null,null,null,null,null,null,null,null,"Interrupción de operación o servicio\n"]
[null,null,null,null,null,null,null,null,null,null,null,null,"Pérdidas Económicas\n"]
[null,null,null,null,null,null,null,null,null,null,null,null,"Suspensión de suministros de redes físicas (Energía, gas agua e internet)\n"]
[null,null,null,null,null,null,null,null,null,null,null,null,"Afectación Salud Mental\n"]
[null,null,null,null,null,null,null,null,null,null,null,null,"Afectación en vehiculos\n"]
[null,null,null,null,null,null,null,null,null,null,null,"BROTES DE ENFERMEDADES EPIDEMICAS","Enfermedades\n",{"$f":"+CONCATENATE(M257,IF(M258<>\"\",\" *\",\"\"),M258,IF(M259<>\"\",\" *\",\"\"),M259,IF(M260<>\"\",\" *\",\"\"),M260,IF(M261<>\"\",\" *\",\"\"),M261,IF(M262<>\"\",\" *\",\"\"),M262)","v":"Enfermedades\n *Lesiones\n *Pérdidas Humanas\n *Pérdidas Económicas\n *Interrupción de Operación o servicio\n *Afectación Salud Mental\n"}]
[null,null,null,null,null,null,null,null,null,null,null,null,"Lesiones\n"]
[null,null,null,null,null,null,null,null,null,null,null,null,"Pérdidas Humanas\n"]
[null,null,null,null,null,null,null,null,null,null,null,null,"Pérdidas Económicas\n"]
[null,null,null,null,null,null,null,null,null,null,null,null,"Interrupción de Operación o servicio\n"]
[null,null,null,null,null,null,null,null,null,null,null,null,"Afectación Salud Mental\n"]
[null,null,null,null,null,null,null,null,null,null,null,"ENFERMEDADES CONTAGIOSAS DE ORIGEN ANIMAL O VEGETAL","Enfermedades\n",{"$f":"+CONCATENATE(M263,IF(M264<>\"\",\"*\",\"\"),M264,IF(M265<>\"\",\" *\",\"\"),M265,IF(M266<>\"\",\" *\",\"\"),M266,IF(M267<>\"\",\" *\",\"\"),M267,IF(M268<>\"\",\" *\",\"\"),M268)","v":"Enfermedades\n*Lesiones\n *Pérdidas Humanas\n *Pérdidas económicas\n *Interrupción de Operación o servicio\n *Afectación Salud Mental\n"}]
[null,null,null,null,null,null,null,null,null,null,null,null,"Lesiones\n"]
[null,null,null,null,null,null,null,null,null,null,null,null,"Pérdidas Humanas\n"]
[null,null,null,null,null,null,null,null,null,null,null,null,"Pérdidas económicas\n"]
[null,null,null,null,null,null,null,null,null,null,null,null,"Interrupción de Operación o servicio\n"]
[null,null,null,null,null,null,null,null,null,null,null,null,"Afectación Salud Mental\n"]
[null,null,null,null,null,null,null,null,null,null,null,"COLAPSO ESTRUCTURAL","Afectación directa de los registros documentales por deterioro o pérdida\n",{"$f":"+CONCATENATE(M269,IF(M270<>\"\",\" *\",\"\"),M270,IF(M271<>\"\",\" *\",\"\"),M271,IF(M272<>\"\",\" *\",\"\"),M272,IF(M273<>\"\",\" *\",\"\"),M273,IF(M274<>\"\",\" *\",\"\"),M274,IF(M275<>\"\",\" *\",\"\"),M275,IF(M276<>\"\",\" *\",\"\"),M276,IF(M277<>\"\",\" *\",\"\"),M277,IF(M278<>\"\",\" *\",\"\"),M278,IF(M279<>\"\",\" *\",\"\"),M279,IF(M280<>\"\",\" *\",\"\"),M280,IF(M281<>\"\",\" *\",\"\"),M281,IF(M282<>\"\",\" *\",\"\"),M282)","v":"Afectación directa de los registros documentales por deterioro o pérdida\n *Pèrdida estructural\n *Lesiones\n *Pérdidas Humanas\n *Daño probable en equipos de oficina y muebles\n *Incremento de contaminación\n *Incremento de volúmenes de residuos\n *Pérdidas económicas\n *Interrupción de operación o servicio\n *Suspensión de suministros de redes físicas (Energía, gas, agua e internet)\n *Afectación Salud Mental\n *Afectación de vehiculos\n"}]
[]
[null,null,null,null,null,null,null,null,null,null,null,null,"Pèrdida estructural\n"]
[]
[null,null,null,null,null,null,null,null,null,null,null,null,"Lesiones\n"]
[null,null,null,null,null,null,null,null,null,null,null,null,"Pérdidas Humanas\n"]
[null,null,null,null,null,null,null,null,null,null,null,null,"Daño probable en equipos de oficina y muebles\n"]
[null,null,null,null,null,null,null,null,null,null,null,null,"Incremento de contaminación\n"]
[null,null,null,null,null,null,null,null,null,null,null,null,"Incremento de volúmenes de residuos\n"]
[null,null,null,null,null,null,null,null,null,null,null,null,"Pérdidas económicas\n"]
[null,null,null,null,null,null,null,null,null,null,null,null,"Interrupción de operación o servicio\n"]
[null,null,null,null,null,null,null,null,null,null,null,null,"Suspensión de suministros de redes físicas (Energía, gas, agua e internet)\n"]
[null,null,null,null,null,null,null,null,null,null,null,null,"Afectación Salud Mental\n"]
[null,null,null,null,null,null,null,null,null,null,null,null,"Afectación de vehiculos\n"]
[null,null,null,null,null,null,null,null,null,null,null,"FALLO EN EL SUMINISTRO DE REDES FÍSICAS (hidrosanitarias, Energia, Gas y de Comunicación)",null,{"$f":"+CONCATENATE(M283,IF(M284<>\"\",\" *\",\"\"),M284,IF(M285<>\"\",\" *\",\"\"),M285,IF(M286<>\"\",\" *\",\"\"),M286,IF(M287<>\"\",\" *\",\"\"),M287,IF(M288<>\"\",\" *\",\"\"),M288,IF(M289<>\"\",\" *\",\"\"),M289,IF(M290<>\"\",\" *\",\"\"),M290,IF(M291<>\"\",\" *\",\"\"),M291,IF(M292<>\"\",\" *\",\"\"),M292,IF(M293<>\"\",\" *\",\"\"),M293,IF(M294<>\"\",\" *\",\"\"),M294,IF(M295<>\"\",\" *\",\"\"),M295)","v":" *Pérdida de comunicación\n *Enfermedades\n *Lesiones\n *Daño probable en equipos de oficina y muebles\n *Incremento de contaminación\n *Incremento de volúmenes de residuos\n *Pérdidas económicas\n *Interrupción de operación o servicio\n *Suspensión de suministros de redes físicas (Energía, gas, agua e internet)\n"}]
[null,null,null,null,null,null,null,null,null,null,null,null,"Pérdida de comunicación\n"]
[]
[null,null,null,null,null,null,null,null,null,null,null,null,"Enfermedades\n"]
[null,null,null,null,null,null,null,null,null,null,null,null,"Lesiones\n"]
[]
[null,null,null,null,null,null,null,null,null,null,null,null,"Daño probable en equipos de oficina y muebles\n"]
[null,null,null,null,null,null,null,null,null,null,null,null,"Incremento de contaminación\n"]
[null,null,null,null,null,null,null,null,null,null,null,null,"Incremento de volúmenes de residuos\n"]
[null,null,null,null,null,null,null,null,null,null,null,null,"Pérdidas económicas\n"]
[null,null,null,null,null,null,null,null,null,null,null,null,"Interrupción de operación o servicio\n"]
[null,null,null,null,null,null,null,null,null,null,null,null,"Suspensión de suministros de redes físicas (Energía, gas, agua e internet)\n"]
[]
[null,null,null,null,null,null,null,null,null,null,null,"INCENDIOS","Afectación directa de los registros documentales por deterioro o perdida\n",{"$f":"+CONCATENATE(IF(M296<>\"\",\" *\",\"\"),M296,IF(M297<>\"\",\" *\",\"\"),M297,IF(M298<>\"\",\"*\",\"\"),M298,IF(M299<>\"\",\" *\",\"\"),M299,IF(M300<>\"\",\" *\",\"\"),M300,IF(M301<>\"\",\" *\",\"\"),M301,IF(M302<>\"\",\" *\",\"\"),M302,IF(M303<>\"\",\" *\",\"\"),M303,IF(M304<>\"\",\" *\",\"\"),M304,IF(M305<>\"\",\" *\",\"\"),M305,IF(M306<>\"\",\"*\",\"\"),M306,IF(M307<>\"\",\" *\",\"\"),M307,IF(M308<>\"\",\" *\",\"\"),M308,IF(M309<>\"\",\" *\",\"\"),M309)","v":" *Afectación directa de los registros documentales por deterioro o perdida\n*Pérdida estructural\n *Lesiones\n *Pérdidas Humanas\n *Daño probable en equipos de oficina y muebles\n *Incremento de contaminación\n *Incremento de volúmenes de residuos\n *Pérdidas económicas\n*Interrupción de operación o servicio\n *Suspensión de suministros de redes físicas (Energía, gas, agua e internet)\n *Afectación Salud Mental\n *Afectación en vehiculos\n"}]
[]
[null,null,null,null,null,null,null,null,null,null,null,null,"Pérdida estructural\n"]
[]
[null,null,null,null,null,null,null,null,null,null,null,null,"Lesiones\n"]
[null,null,null,null,null,null,null,null,null,null,null,null,"Pérdidas Humanas\n"]
[null,null,null,null,null,null,null,null,null,null,null,null,"Daño probable en equipos de oficina y muebles\n"]
[null,null,null,null,null,null,null,null,null,null,null,null,"Incremento de contaminación\n"]
[null,null,null,null,null,null,null,null,null,null,null,null,"Incremento de volúmenes de residuos\n"]
[null,null,null,null,null,null,null,null,null,null,null,null,"Pérdidas económicas\n"]
[null,null,null,null,null,null,null,null,null,null,null,null,"Interrupción de operación o servicio\n"]
[null,null,null,null,null,null,null,null,null,null,null,null,"Suspensión de suministros de redes físicas (Energía, gas, agua e internet)\n"]
[null,null,null,null,null,null,null,null,null,null,null,null,"Afectación Salud Mental\n"]
[null,null,null,null,null,null,null,null,null,null,null,null,"Afectación en vehiculos\n"]
[null,null,null,null,null,null,null,null,null,null,null,"PERDIDA DE CONTENCION DE MATERIALES PELIGROSOS  Y/O DERRAMES","Enfermedades\n",{"$f":"+CONCATENATE(M310,IF(M311<>\"\",\" *\",\"\"),M311,IF(M312<>\"\",\" *\",\"\"),M312,IF(M313<>\"\",\" *\",\"\"),M313,IF(M314<>\"\",\" *\",\"\"),M314,IF(M315<>\"\",\"*\",\"\"),M315,IF(M316<>\"\",\" *\",\"\"),M316,IF(M317<>\"\",\" *\",\"\"),M317,IF(M318<>\"\",\" *\",\"\"),M318)","v":"Enfermedades\n *Lesiones\n *Incremento de contaminación\n *Incremento de volúmenes de residuos\n*Incendio\n *Pérdidas económicas\n *Afectación de vehículos\n"}]
[null,null,null,null,null,null,null,null,null,null,null,null,"Lesiones\n"]
[]
[null,null,null,null,null,null,null,null,null,null,null,null,"Incremento de contaminación\n"]
[null,null,null,null,null,null,null,null,null,null,null,null,"Incremento de volúmenes de residuos\n"]
[null,null,null,null,null,null,null,null,null,null,null,null,"Incendio\n"]
[null,null,null,null,null,null,null,null,null,null,null,null,"Pérdidas económicas\n"]
[]
[null,null,null,null,null,null,null,null,null,null,null,null,"Afectación de vehículos\n"]
[null,null,null,null,null,null,null,null,null,null,null,"FALLA EN SISTEMA DE RECOLECCIÓN DE RESIDUOS SÓLIDOS","Enfermedades\n",{"$f":"+CONCATENATE(M319,IF(M320<>\"\",\" *\",\"\"),M320,IF(M321<>\"\",\" *\",\"\"),M321,IF(M322<>\"\",\" *\",\"\"),M322,IF(M323<>\"\",\" *\",\"\"),M323,IF(M324<>\"\",\" *\",\"\"),M324)","v":"Enfermedades\n *Incremento de vectores\n *Incremento de contaminaciòn\n *Incremento de volùmenes y residuos\n *Pérdidas económicas\n *Afectación Salud Mental\n"}]
[null,null,null,null,null,null,null,null,null,null,null,null,"Incremento de vectores\n"]
[null,null,null,null,null,null,null,null,null,null,null,null,"Incremento de contaminaciòn\n"]
[null,null,null,null,null,null,null,null,null,null,null,null,"Incremento de volùmenes y residuos\n"]
[null,null,null,null,null,null,null,null,null,null,null,null,"Pérdidas económicas\n"]
[null,null,null,null,null,null,null,null,null,null,null,null,"Afectación Salud Mental\n"]
[null,null,null,null,null,null,null,null,null,null,null,"EXPLOSION","Afectación directa de los registros documentales por deterioro o perdida\n",{"$f":"+CONCATENATE(M325,IF(M326<>\"\",\"*\",\"\"),M326,IF(M327<>\"\",\" *\",\"\"),M327,IF(M328<>\"\",\" *\",\"\"),M328,IF(M329<>\"\",\" *\",\"\"),M329,IF(M330<>\"\",\" *\",\"\"),M330,IF(M331<>\"\",\" *\",\"\"),M331,IF(M332<>\"\",\" *\",\"\"),M332,IF(M333<>\"\",\" *\",\"\"),M333,IF(M334<>\"\",\" *\",\"\"),M334,IF(M335<>\"\",\"*\",\"\"),M335,IF(M336<>\"\",\" *\",\"\"),M336,IF(M337<>\"\",\" *\",\"\"),M337,IF(M338<>\"\",\" *\",\"\"),M338,IF(M339<>\"\",\" *\",\"\"),M339,IF(M340<>\"\",\" *\",\"\"),M340)","v":"Afectación directa de los registros documentales por deterioro o perdida\n*Pérdida de comunicaciòn\n *Cortos circuitos\n *Fuga de agua y gas\n *Enfermedades\n *Lesiones\n *Pérdidas Humanas\n *Daño probable en equipos de oficina y muebles\n *Incremento de contaminación\n *Incremento de volúmenes de residuos\n*Pèrdidas econòmicas\n *Interrupción de operación o servicio\n *Suspensión de suministros de redes físicas (Energía, gas agua e internet)\n *Afectación Salud Mental\n *Afectación de vehículos\n *Pérdida total o parcial de vehículos o autopartes\n"}]
[null,null,null,null,null,null,null,null,null,null,null,null,"Pérdida de comunicaciòn\n"]
[null,null,null,null,null,null,null,null,null,null,null,null,"Cortos circuitos\n"]
[null,null,null,null,null,null,null,null,null,null,null,null,"Fuga de agua y gas\n"]
[null,null,null,null,null,null,null,null,null,null,null,null,"Enfermedades\n"]
[null,null,null,null,null,null,null,null,null,null,null,null,"Lesiones\n"]
[null,null,null,null,null,null,null,null,null,null,null,null,"Pérdidas Humanas\n"]
[null,null,null,null,null,null,null,null,null,null,null,null,"Daño probable en equipos de oficina y muebles\n"]
[null,null,null,null,null,null,null,null,null,null,null,null,"Incremento de contaminación\n"]
[null,null,null,null,null,null,null,null,null,null,null,null,"Incremento de volúmenes de residuos\n"]
[null,null,null,null,null,null,null,null,null,null,null,null,"Pèrdidas econòmicas\n"]
[null,null,null,null,null,null,null,null,null,null,null,null,"Interrupción de operación o servicio\n"]
[null,null,null,null,null,null,null,null,null,null,null,null,"Suspensión de suministros de redes físicas (Energía, gas agua e internet)\n"]
[null,null,null,null,null,null,null,null,null,null,null,null,"Afectación Salud Mental\n"]
[null,null,null,null,null,null,null,null,null,null,null,null,"Afectación de vehículos\n"]
[null,null,null,null,null,null,null,null,null,null,null,null,"Pérdida total o parcial de vehículos o autopartes\n"]
[null,null,null,null,null,null,null,null,null,null,null,"CONTAMINACIÓN DE ALIMENTOS","Enfermedades\n",{"$f":"+CONCATENATE(M341,IF(M342<>\"\",\" *\",\"\"),M342,IF(M343<>\"\",\" *\",\"\"),M343,IF(M344<>\"\",\" *\",\"\"),M344,IF(M345<>\"\",\"*\",\"\"),M345)","v":"Enfermedades\n *Pérdidas Humanas\n *Interrupción de operación o servicio\n*Afectación Salud Mental\n"}]
[null,null,null,null,null,null,null,null,null,null,null,null,"Pérdidas Humanas\n"]
[]
[null,null,null,null,null,null,null,null,null,null,null,null,"Interrupción de operación o servicio\n"]
[null,null,null,null,null,null,null,null,null,null,null,null,"Afectación Salud Mental\n"]
[null,null,null,null,null,null,null,null,null,null,null,"ATENTADOS","Afectación directa de los registros documentales por deterioro o perdida\n",{"$f":"+CONCATENATE(M346,IF(M347<>\"\",\" *\",\"\"),M347,IF(M348<>\"\",\" *\",\"\"),M348,IF(M349<>\"\",\" *\",\"\"),M349,IF(M350<>\"\",\" *\",\"\"),M350,IF(M351<>\"\",\" *\",\"\"),M351,IF(M352<>\"\",\" *\",\"\"),M352,IF(M353<>\"\",\" *\",\"\"),M353,IF(M354<>\"\",\" *\",\"\"),M354,IF(M355<>\"\",\" *\",\"\"),M355,IF(M356<>\"\",\" *\",\"\"),M356,IF(M357<>\"\",\" *\",\"\"),M357)","v":"Afectación directa de los registros documentales por deterioro o perdida\n *Pérdida de comunicacion\n *Daño a la infraestructura\n *Lesiones\n *Pérdidas Humanas\n *Daño probable en equipos de oficina  y muebles\n *Pérdidas económicas\n *Interrupción de operacion o servicio\n *Suspensión de suministros de redes físicas (Energía, gas agua e internet)\n *Afectación Salud Mental\n *Afectación de vehículos\n"}]
[null,null,null,null,null,null,null,null,null,null,null,null,"Pérdida de comunicacion\n"]
[null,null,null,null,null,null,null,null,null,null,null,null,"Daño a la infraestructura\n"]
[]
[null,null,null,null,null,null,null,null,null,null,null,null,"Lesiones\n"]
[null,null,null,null,null,null,null,null,null,null,null,null,"Pérdidas Humanas\n"]
[null,null,null,null,null,null,null,null,null,null,null,null,"Daño probable en equipos de oficina  y muebles\n"]
[null,null,null,null,null,null,null,null,null,null,null,null,"Pérdidas económicas\n"]
[null,null,null,null,null,null,null,null,null,null,null,null,"Interrupción de operacion o servicio\n"]
[null,null,null,null,null,null,null,null,null,null,null,null,"Suspensión de suministros de redes físicas (Energía, gas agua e internet)\n"]
[null,null,null,null,null,null,null,null,null,null,null,null,"Afectación Salud Mental\n"]
[null,null,null,null,null,null,null,null,null,null,null,null,"Afectación de vehículos\n"]
[null,null,null,null,null,null,null,null,null,null,null,"HUELGAS Y/O ASONADAS","Daño a la infraestructura\n",{"$f":"+CONCATENATE(M358,IF(M359<>\"\",\"*\",\"\"),M359,IF(M360<>\"\",\" *\",\"\"),M360,IF(M361<>\"\",\" *\",\"\"),M361,IF(M362<>\"\",\"*\",\"\"),M362,IF(M363<>\"\",\" *\",\"\"),M363,IF(M364<>\"\",\" *\",\"\"),M364)","v":"Daño a la infraestructura\n*Lesiones\n *Daño probable en equipos de oficina  y muebles\n *Pérdidas económicas\n*Interrupción de operación o servicio\n *Afectación Salud Mental\n *Afectación de vehículos\n"}]
[null,null,null,null,null,null,null,null,null,null,null,null,"Lesiones\n"]
[null,null,null,null,null,null,null,null,null,null,null,null,"Daño probable en equipos de oficina  y muebles\n"]
[null,null,null,null,null,null,null,null,null,null,null,null,"Pérdidas económicas\n"]
[null,null,null,null,null,null,null,null,null,null,null,null,"Interrupción de operación o servicio\n"]
[null,null,null,null,null,null,null,null,null,null,null,null,"Afectación Salud Mental\n"]
[null,null,null,null,null,null,null,null,null,null,null,null,"Afectación de vehículos\n"]
[null,null,null,null,null,null,null,null,null,null,null,"HURTOS","Lesiones\n",{"$f":"+CONCATENATE(M365,IF(M366<>\"\",\" *\",\"\"),M366,IF(M367<>\"\",\" *\",\"\"),M367,IF(M368<>\"\",\" *\",\"\"),M368,IF(M369<>\"\",\" *\",\"\"),M369,IF(M370<>\"\",\" *\",\"\"),M370,IF(M371<>\"\",\" *\",\"\"),M371)","v":"Lesiones\n *Pérdidas humanas\n *Pérdidas económicas\n *Afectación Salud Mental\n *Pérdida total o parcial de vehículos o autopartes\n"}]
[null,null,null,null,null,null,null,null,null,null,null,null,"Pérdidas humanas\n"]
[]
[null,null,null,null,null,null,null,null,null,null,null,null,"Pérdidas económicas\n"]
[]
[null,null,null,null,null,null,null,null,null,null,null,null,"Afectación Salud Mental\n"]
[null,null,null,null,null,null,null,null,null,null,null,null,"Pérdida total o parcial de vehículos o autopartes\n"]
[null,null,null,null,null,null,null,null,null,null,null,"CAIDA POR TRABAJO EN ALTURAS","Lesiones\n",{"$f":"+CONCATENATE(M372,IF(M373<>\"\",\" *\",\"\"),M373,IF(M374<>\"\",\" *\",\"\"),M374,IF(M375<>\"\",\" *\",\"\"),M375,IF(M376<>\"\",\" *\",\"\"),M376)","v":"Lesiones\n *Enfermedades\n *Pérdidas Humanas\n *Pérdidas Economicas\n *Afectación Salud Mental\n"}]
[null,null,null,null,null,null,null,null,null,null,null,null,"Enfermedades\n"]
[null,null,null,null,null,null,null,null,null,null,null,null,"Pérdidas Humanas\n"]
[null,null,null,null,null,null,null,null,null,null,null,null,"Pérdidas Economicas\n"]
[null,null,null,null,null,null,null,null,null,null,null,null,"Afectación Salud Mental\n"]
[null,null,null,null,null,null,null,null,null,null,null,"AVENIDA TORRENCIAL","Agua en las instalaciones\n",{"$f":"+CONCATENATE(M377,IF(M378<>\"\",\" *\",\"\"),M378,IF(M379<>\"\",\" *\",\"\"),M379,IF(M380<>\"\",\"*\",\"\"),M380,IF(M381<>\"\",\"*\",\"\"),M381,IF(M382<>\"\",\" *\",\"\"),M382,IF(M383<>\"\",\" *\",\"\"),M383,IF(M384<>\"\",\" *\",\"\"),M384,IF(M385<>\"\",\" *\",\"\"),M385,IF(M386<>\"\",\"*\",\"\"),M386,IF(M387<>\"\",\"*\",\"\"),M387,IF(M388<>\"\",\"*\",\"\"),M388,IF(M389<>\"\",\" *\",\"\"),M389,IF(M390<>\"\",\"*\",\"\"),M390,IF(M391<>\"\",\" *\",\"\"),M391,IF(M392<>\"\",\" *\",\"\"),M392,,IF(M393<>\"\",\" *\",\"\"),M393)","v":"Agua en las instalaciones\n *Deterioro de la infraestructura\n *Enfermedades\n*Lesiones\n*Pérdidas Humanas\n *Afectación directa de los registros documentales por deterioro o pérdida\n *Pérdida de Comunicación\n *Cortos circuitos\n *Daño probable en equipos de oficina y muebles\n*Incremento de vectores\n*Incremento de contaminación\n*Incremento de volúmenes de residuos\n *Interrupción de Operación o servicio\n*Pérdidas Económicas\n *Suspensión de suministro de redes físicas (Energía, gas agua e internet)\n *Afectación Salud Mental\n *Afectación de vehículos\n"}]
[null,null,null,null,null,null,null,null,null,null,null,null,"Deterioro de la infraestructura\n"]
[null,null,null,null,null,null,null,null,null,null,null,null,"Enfermedades\n"]
[null,null,null,null,null,null,null,null,null,null,null,null,"Lesiones\n"]
[null,null,null,null,null,null,null,null,null,null,null,null,"Pérdidas Humanas\n"]
[null,null,null,null,null,null,null,null,null,null,null,null,"Afectación directa de los registros documentales por deterioro o pérdida\n"]
[null,null,null,null,null,null,null,null,null,null,null,null,"Pérdida de Comunicación\n"]
[null,null,null,null,null,null,null,null,null,null,null,null,"Cortos circuitos\n"]
[null,null,null,null,null,null,null,null,null,null,null,null,"Daño probable en equipos de oficina y muebles\n"]
[null,null,null,null,null,null,null,null,null,null,null,null,"Incremento de vectores\n"]
[null,null,null,null,null,null,null,null,null,null,null,null,"Incremento de contaminación\n"]
[null,null,null,null,null,null,null,null,null,null,null,null,"Incremento de volúmenes de residuos\n"]
[null,null,null,null,null,null,null,null,null,null,null,null,"Interrupción de Operación o servicio\n"]
[null,null,null,null,null,null,null,null,null,null,null,null,"Pérdidas Económicas\n"]
[null,null,null,null,null,null,null,null,null,null,null,null,"Suspensión de suministro de redes físicas (Energía, gas agua e internet)\n"]
[null,null,null,null,null,null,null,null,null,null,null,null,"Afectación Salud Mental\n"]
[null,null,null,null,null,null,null,null,null,null,null,null,"Afectación de vehículos\n"]

{"sheet":"2. MATRIZ DE RIESGOS","index":3,"n_rows":16,"n_cols":21,"rows_kept":16,"cut":false,"hidden":false,"merged":[[0,1,2,1],[0,2,2,6],[2,7,2,8],[15,1,18,2],[12,1,12,8],[4,1,9,1],[11,3,11,7],[10,1,10,2]]}
[null,null,"PROCESO \nGESTIÓN DEL TALENTO HUMANO\n\nMATRIZ VALORACIÓN DE RIESGOS DE EMERGENCIA",null,null,null,null,"F2.P9.GTH","2026-04-28"]
[null,null,null,null,null,null,null,"Versión 10","Página 1 de 1"]
[null,null,null,null,null,null,null,"Clasificación de la Información \nPública",null,null,null,null,null,null,null,null,null,null,null,"Versión 1 \n\n\n","Página 1 de 1"]
[null,null,null,"A","B","C","D","E"]
[null,"PROBABILIDAD","Muy Probable",{"$f":"concatenateif('1. IDENTIFICACION DE AMENAZAS'!$X$7:$X$31,'VALORACION GRAVEDAD (2)'!N3,'1. IDENTIFICACION DE AMENAZAS'!$A$7:$A$31,\", \")","v":""},{"$f":"concatenateif('1. IDENTIFICACION DE AMENAZAS'!$X$7:$X$31,'VALORACION GRAVEDAD (2)'!O3,'1. IDENTIFICACION DE AMENAZAS'!$A$7:$A$31,\", \")","v":""},{"$f":"concatenateif('1. IDENTIFICACION DE AMENAZAS'!$X$7:$X$31,'VALORACION GRAVEDAD (2)'!P3,'1. IDENTIFICACION DE AMENAZAS'!$A$7:$A$31,\", \")","v":""},{"$f":"concatenateif('1. IDENTIFICACION DE AMENAZAS'!$X$7:$X$31,'VALORACION GRAVEDAD (2)'!Q3,'1. IDENTIFICACION DE AMENAZAS'!$A$7:$A$31,\", \")","v":""},{"$f":"concatenateif('1. IDENTIFICACION DE AMENAZAS'!$X$7:$X$31,'VALORACION GRAVEDAD (2)'!R3,'1. IDENTIFICACION DE AMENAZAS'!$A$7:$A$31,\", \")","v":""},6]
[null,null,"Bastante Probable ",{"$f":"concatenateif('1. IDENTIFICACION DE AMENAZAS'!$X$7:$X$31,'VALORACION GRAVEDAD (2)'!N4,'1. IDENTIFICACION DE AMENAZAS'!$A$7:$A$31,\", \")","v":""},{"$f":"concatenateif('1. IDENTIFICACION DE AMENAZAS'!$X$7:$X$31,'VALORACION GRAVEDAD (2)'!O4,'1. IDENTIFICACION DE AMENAZAS'!$A$7:$A$31,\", \")","v":""},{"$f":"concatenateif('1. IDENTIFICACION DE AMENAZAS'!$X$7:$X$31,'VALORACION GRAVEDAD (2)'!P4,'1. IDENTIFICACION DE AMENAZAS'!$A$7:$A$31,\", \")","v":""},{"$f":"concatenateif('1. IDENTIFICACION DE AMENAZAS'!$X$7:$X$31,'VALORACION GRAVEDAD (2)'!Q4,'1. IDENTIFICACION DE AMENAZAS'!$A$7:$A$31,\", \")","v":""},{"$f":"concatenateif('1. IDENTIFICACION DE AMENAZAS'!$X$7:$X$31,'VALORACION GRAVEDAD (2)'!R4,'1. IDENTIFICACION DE AMENAZAS'!$A$7:$A$31,\", \")","v":""},5]
[null,null,"Medianamente Probable",{"$f":"concatenateif('1. IDENTIFICACION DE AMENAZAS'!$X$7:$X$31,'VALORACION GRAVEDAD (2)'!N5,'1. IDENTIFICACION DE AMENAZAS'!$A$7:$A$31,\", \")","v":""},{"$f":"concatenateif('1. IDENTIFICACION DE AMENAZAS'!$X$7:$X$31,'VALORACION GRAVEDAD (2)'!O5,'1. IDENTIFICACION DE AMENAZAS'!$A$7:$A$31,\", \")","v":""},{"$f":"concatenateif('1. IDENTIFICACION DE AMENAZAS'!$X$7:$X$31,'VALORACION GRAVEDAD (2)'!P5,'1. IDENTIFICACION DE AMENAZAS'!$A$7:$A$31,\", \")","v":""},{"$f":"concatenateif('1. IDENTIFICACION DE AMENAZAS'!$X$7:$X$31,'VALORACION GRAVEDAD (2)'!Q5,'1. IDENTIFICACION DE AMENAZAS'!$A$7:$A$31,\", \")","v":""},{"$f":"concatenateif('1. IDENTIFICACION DE AMENAZAS'!$X$7:$X$31,'VALORACION GRAVEDAD (2)'!R5,'1. IDENTIFICACION DE AMENAZAS'!$A$7:$A$31,\", \")","v":""},4]
[null,null,"Probable",{"$f":"concatenateif('1. IDENTIFICACION DE AMENAZAS'!$X$7:$X$31,'VALORACION GRAVEDAD (2)'!N6,'1. IDENTIFICACION DE AMENAZAS'!$A$7:$A$31,\", \")","v":""},{"$f":"concatenateif('1. IDENTIFICACION DE AMENAZAS'!$X$7:$X$31,'VALORACION GRAVEDAD (2)'!O6,'1. IDENTIFICACION DE AMENAZAS'!$A$7:$A$31,\", \")","v":""},{"$f":"concatenateif('1. IDENTIFICACION DE AMENAZAS'!$X$7:$X$31,'VALORACION GRAVEDAD (2)'!P6,'1. IDENTIFICACION DE AMENAZAS'!$A$7:$A$31,\", \")","v":""},{"$f":"concatenateif('1. IDENTIFICACION DE AMENAZAS'!$X$7:$X$31,'VALORACION GRAVEDAD (2)'!Q6,'1. IDENTIFICACION DE AMENAZAS'!$A$7:$A$31,\", \")","v":""},{"$f":"concatenateif('1. IDENTIFICACION DE AMENAZAS'!$X$7:$X$31,'VALORACION GRAVEDAD (2)'!R6,'1. IDENTIFICACION DE AMENAZAS'!$A$7:$A$31,\", \")","v":""},3]
[null,null,"Poco Probable",{"$f":"concatenateif('1. IDENTIFICACION DE AMENAZAS'!$X$7:$X$31,'VALORACION GRAVEDAD (2)'!N7,'1. IDENTIFICACION DE AMENAZAS'!$A$7:$A$31,\", \")","v":""},{"$f":"concatenateif('1. IDENTIFICACION DE AMENAZAS'!$X$7:$X$31,'VALORACION GRAVEDAD (2)'!O7,'1. IDENTIFICACION DE AMENAZAS'!$A$7:$A$31,\", \")","v":""},{"$f":"concatenateif('1. IDENTIFICACION DE AMENAZAS'!$X$7:$X$31,'VALORACION GRAVEDAD (2)'!P7,'1. IDENTIFICACION DE AMENAZAS'!$A$7:$A$31,\", \")","v":""},{"$f":"concatenateif('1. IDENTIFICACION DE AMENAZAS'!$X$7:$X$31,'VALORACION GRAVEDAD (2)'!Q7,'1. IDENTIFICACION DE AMENAZAS'!$A$7:$A$31,\", \")","v":""},{"$f":"concatenateif('1. IDENTIFICACION DE AMENAZAS'!$X$7:$X$31,'VALORACION GRAVEDAD (2)'!R7,'1. IDENTIFICACION DE AMENAZAS'!$A$7:$A$31,\", \")","v":""},2]
[null,null,"Improbable",{"$f":"concatenateif('1. IDENTIFICACION DE AMENAZAS'!$X$7:$X$31,'VALORACION GRAVEDAD (2)'!N8,'1. IDENTIFICACION DE AMENAZAS'!$A$7:$A$31,\", \")","v":""},{"$f":"concatenateif('1. IDENTIFICACION DE AMENAZAS'!$X$7:$X$31,'VALORACION GRAVEDAD (2)'!O8,'1. IDENTIFICACION DE AMENAZAS'!$A$7:$A$31,\", \")","v":""},{"$f":"concatenateif('1. IDENTIFICACION DE AMENAZAS'!$X$7:$X$31,'VALORACION GRAVEDAD (2)'!P8,'1. IDENTIFICACION DE AMENAZAS'!$A$7:$A$31,\", \")","v":""},{"$f":"concatenateif('1. IDENTIFICACION DE AMENAZAS'!$X$7:$X$31,'VALORACION GRAVEDAD (2)'!Q8,'1. IDENTIFICACION DE AMENAZAS'!$A$7:$A$31,\", \")","v":""},{"$f":"concatenateif('1. IDENTIFICACION DE AMENAZAS'!$X$7:$X$31,'VALORACION GRAVEDAD (2)'!R8,'1. IDENTIFICACION DE AMENAZAS'!$A$7:$A$31,\", \")","v":""},1]
[null,"Calificación Matriz Riesgos",null,"Poco Importante","Limitada","Graves","Muy Graves","Catastróficas"]
[null,"Puntaje Obtenido \nPorcentaje ",null,"PONDERACIÓN DE LAS CONSECUENCIAS "]
[null,"\"Antes de imprimir este documento… piense en el medio ambiente!\nCualquier copia impresa de este documento se considera como COPIA NO CONTROLADA.\nLOS DATOS PROPORCIONADOS SERAN TRATADOS DE ACUERDO A LA POLITICA DE TRATAMIENTO DE DATOS PERSONALES DEL ICBF Y A LA LEY 1581 DE 2012\"                "]
[]
[]
[null,"Una vez evaluadas la totalidad de amenazas identificadas dentro de la tabla debera asignarse el porcentaje segun sea el caso:\n \n* 40% Riesgo alto igual o mayor al 80% de las amenazas clasificadas dentro del recuadro azul.\n* 20% Riesgo medio clasificaciones C 1,2, B 4, 5 Y 610% Riesgo bajo Clasificaciones B 1,2,3 y A 3,4 y 5.\n* 0% Riesgo muy bajo Clasificación 1 y 2 A.\n\n"]

{"sheet":"3. ELEMENTOS EN GESTIÓN S.S.T","index":4,"n_rows":33,"n_cols":5,"rows_kept":33,"cut":false,"hidden":false,"merged":[[7,0,7,1],[8,0,8,1],[9,0,9,1],[28,0,28,1],[17,0,17,1],[18,0,18,1],[3,0,3,1],[0,1,2,2],[4,0,4,1],[5,0,5,1],[6,0,6,1],[32,0,32,4],[24,0,24,1],[27,0,27,1],[31,0,31,1],[25,0,25,1],[26,0,26,1],[31,2,31,4],[2,3,2,4],[30,0,30,1],[29,0,29,1],[19,0,19,1],[10,0,10,1],[20,0,20,1],[21,0,21,1],[22,0,22,1],[23,0,23,1],[16,0,16,1],[11,0,11,1],[12,0,12,1],[13,0,13,1],[14,0,14,1],[15,0,15,1],[0,0,2,0]]}
[null,"PROCESO \nGESTIÓN DEL TALENTO HUMANO\n\nMATRIZ VALORACIÓN DE RIESGOS DE EMERGENCIA",null,"F2.P9.GTH","2026-04-28"]
[null,null,null,"Versión 10","Página 1 de 1"]
[null,null,null,"Clasificación de la Información \nPública"]
["SEGURIDAD",null,"SI (0) ","PARCIALMENTE (0.5)","NO (1)"]
["1-Cuenta con un Sistema de Gestión de Seguridad y Salud en el Trabajo implementado sobre un 95% de los estadarés mínimos del SG-SST"]
["2-La Política de Seguridad, Salud en el Trabajo se encuentra documentada y divulgada entre colaboradores y partes interesadas."]
["3-Tiene identificados y evaluados los requisitos legales aplicables para Seguridad y Salud en el trabajo."]
["4-Se aplica el procedimiento de evaluación de la implementación Sistema de Gestión de Seguridad y Salud en el Trabajo."]
["5-Cuenta con canales que permitan recolectar inquietudes, oportundiades de mejora, felicitaciones y aportes de los colaboradores en materia de seguridad y salud en el trabajo."]
["6-Cuenta con la cartilla de prevención de desastres "]
["7-Aplica la metodología para la identificación y  valoración de los peligros en la sede."]
["8- Cuenta con planos detallados de la construcción, instalaciones eléctricas, aguas lluvias, aguas residuales."]
["9 -Cuenta con un procedimiento para el reporte e investigación de accidentes e incidentes de trabajo."]
["10 -Cuenta con un plan de emergencias y contingencias para responder a situaciones tales como la alteración de las condiciones normales de operación por amenazas de origen naturales, social y antrópicas no intencionales."]
["11-Tiene conformadas y en funcionamiento las brigadas de emergencia."]
["12 - Existen recursos y suministros para el personal de las Brigadas "]
["13 -Tiene actividades de capacitación y entrenamiento para las brigadas de emergencia."]
["14 -Tiene establecidos los requisitos necesarios para desempeñar cada trabajo y proporciona a los colaboradores el entrenamiento correspondiente."]
["15 -Aplica el procedimiento de inducción, reinducción en Seguridad y Salud en el Trabajo, en el caso de nuevos colaboradores  y de refuerzo para colaboradores antiguos."]
["16–A los contratistas se les exige el cumplimiento de las normas de seguridad y salud en el trabajo."]
["17 -Todos los productos químicos se encuentran identificados conforme a las normas nacionales o internacionales, en lo relacionado con sus riesgos y poseen la correspondiente hoja de seguridad."]
["18-Cuenta con equipos redundantes de protección y/o otras medidas de seguridad, donde sea aplicable."]
["19- Cuenta con sistemas de prevención (alarmas, extintores, botiquines, detectores de humo, etc.)."]
["20-Cuenta con esquemas de rutas de evacuación  actualizados. "]
["21-Realiza simulacros al menos una vez al año con participación de todos los colaboradores. "]
["22. Cuenta con sistemas alternos (planta de emergencia electrica, tanques de reserva de agua, bombas electricas, etc). "]
["23. Cuenta con Sitemas de Recuperación (Polizas, seguros)"]
[" SALUD",null,"SI (0) ","PARCIALMENTE (0.5)","NO (1)"]
["24. Los colaboradores se involucran en la elaboración de procedimientos tendientes a lograr un ambiente laboral sano y seguro."]
["25. Tiene identificados los riesgos y/o peligros por tareas y son conocidos por los colaboradores"]
["TOTAL",null,{"$f":"SUM(C5+C6+C7+C8+C9+C10+C11+C12+C13+C14+C15+C16+C17+C18+C19+C20+C21+C22+C23+C24+C25+C26+C27+C29+C30)","v":0},{"$f":"SUM(D5+D6+D7+D8+D9+D10+D11+D12+D13+D14+D15+D16+D17+D18+D19+D20+D21+D22+D23+D24+D25+D26+D27+D29+D30)","v":0},0]
[null,null,{"$f":"SUM(C31:E31)","v":0}]
["\"Antes de imprimir este documento… piense en el medio ambiente!\nCualquier copia impresa de este documento se considera como COPIA NO CONTROLADA.\nLOS DATOS PROPORCIONADOS SERAN TRATADOS DE ACUERDO A LA POLITICA DE TRATAMIENTO DE DATOS PERSONALES DEL ICBF Y A LA LEY 1581 DE 2012\"      "]

{"sheet":"4. ELEMENTOS AMBIENTALES","index":5,"n_rows":24,"n_cols":4,"rows_kept":24,"cut":false,"hidden":false,"merged":[[0,0,2,0],[21,0,21,1],[6,0,6,1],[12,0,12,1],[11,0,11,1],[10,0,10,1],[9,0,9,1],[8,0,8,1],[7,0,7,1],[2,2,2,3],[23,0,23,3],[22,2,22,3],[20,0,20,1],[0,1,2,1],[15,0,15,1],[16,0,16,1],[17,0,17,1],[18,0,18,1],[19,0,19,1],[14,0,14,1],[13,0,13,1],[22,0,22,1],[5,0,5,1],[4,0,4,1],[3,0,3,1]]}
[null,"PROCESO \nGESTIÓN DEL TALENTO HUMANO\n\nMATRIZ VALORACIÓN DE RIESGOS DE EMERGENCIA","F2.P9.GTH","2026-04-28"]
[null,null,"Versión 10","Página 1 de 1"]
[null,null,"Clasificación de la Información \nPública"]
["AMBIENTE",null,"ENUNCIADO VERDADERO (1)","ENUNCIADO FALSO (0)"]
["1- La Política Ambiental no se encuentra escrita y divulgada entre colaboradores, proveedores y otras partes interesadas."]
["2-No cuenta con un Plan de Gestión Ambiental de la sede. "]
["3-No tiene identificados los requisitos legales aplicables "]
["3 - La sede genera emisiones."]
["4 - La sede no cuenta con sistemas de tratamiento de las emisiones. "]
["5 - La sede genera vertimientos no domésticos "]
["6 - La sede no cuenta con red de alcantarillado público"]
["7 - Los residuos sólidos esperados contienen características peligrosas."]
["8 -  La sede  no realiza simulacros ambientales al menos una vez al año en artículación con el Sistema Integrado de Gestión  "]
["10 - La sede no realiza reducción en la fuente, reciclaje o reutilización."]
["11- La sede no realiza periódicamente mediciones de residuos."]
["12- La sede no evalúa los riesgos causados por residuos."]
["13 - La sede no cuenta con servicios de transporte y disposición final para los residuos "]
["14 - La sede no cuenta estrategias para la reducción de residuos."]
["15 - La sede cuenta con máquinas y/o equipos generadores de ruido ambiental."]
["16 - La sede no cuenta con aislamiento que permita la reducción del ruido, tales que garanticen el cumplimiento de la normatividad vigente. "]
["17 - La sede no ha identificado emergencias ambientales dentro de la matriz de valoración de aspectos e impactos ambientales. "]
["TOTAL",null,{"$f":"SUM(C5+C6+C7+C8+C9+C10+C11+C12+C13+C14+C15+C16+C17+C18+C19+C20+C21)","v":0},{"$f":"SUM(D5+D6+D7+D8+D9+D10+D11+D12+D13+D14+D15+D16+D17+D18+D19+D20+D21)","v":0}]
[null,null,{"$f":"C22+D22","v":0}]
["\"Antes de imprimir este documento… piense en el medio ambiente!\nCualquier copia impresa de este documento se considera como COPIA NO CONTROLADA.\nLOS DATOS PROPORCIONADOS SERAN TRATADOS DE ACUERDO A LA POLITICA DE TRATAMIENTO DE DATOS PERSONALES DEL ICBF Y A LA LEY 1581 DE 2012"]

{"sheet":"5. CARACTERISTICAS DE ÁREAS","index":6,"n_rows":31,"n_cols":5,"rows_kept":31,"cut":false,"hidden":false,"merged":[[27,3,27,4],[28,3,28,4],[29,3,29,4],[18,0,18,1],[19,0,19,2],[20,0,20,2],[21,0,21,4],[26,0,26,4],[22,0,22,2],[23,0,23,2],[24,0,24,2],[25,0,25,2],[22,3,22,4],[23,3,23,4],[24,3,24,4],[25,3,25,4],[18,3,18,4],[19,3,19,4],[20,3,20,4],[15,3,15,4],[14,0,14,4],[4,3,4,4],[5,3,5,4],[16,3,16,4],[6,3,6,4],[8,0,8,1],[9,0,9,1],[7,3,7,4],[8,3,8,4],[9,3,9,4],[10,3,10,4],[11,3,11,4],[10,0,10,1],[11,0,11,1],[13,0,13,2],[12,3,12,4],[13,3,13,4],[2,3,2,4],[30,0,30,4],[0,0,2,0],[0,1,2,2],[29,0,29,2],[27,0,27,2],[28,0,28,2],[15,0,15,1],[4,0,4,1],[5,0,5,1],[12,0,12,1],[3,0,3,4],[6,0,6,1],[7,0,7,1],[16,0,16,1],[17,0,17,1]]}
[null,"PROCESO \nGESTIÓN DEL TALENTO HUMANO\n\nMATRIZ VALORACIÓN DE RIESGOS DE EMERGENCIA",null,"F2.P9.GTH","2026-04-28"]
[null,null,null,"Versión 10","Página 1 de 1"]
[null,null,null,"Clasificación de la Información \nPública"]
["ÁREAS INSTALACIÓN "]
["ÁREA",null,"DESCRIPCIÓN","m2"]
[null,null,null,1]
[]
[]
[]
[]
[]
[]
[]
["ÁREA TOTAL INSTALACIÓN ",null,null,{"$f":"SUM(D6:E13)","v":1}]
["ÁREA AMORTIGUAMIENTO"]
["ÁREA",null,"DESCRIPCIÓN","m2"]
[]
[]
[]
["ÁREA TOTAL AMORTIGUAMIENTO",null,null,{"$f":"SUM(D17:E19)","v":0}]
["1. RELACIÓN DE ÁREA DE AMORTIGUAMIENTO / ÁREA DE INSTALACIÓN ",null,null,{"$f":"D20/D14","v":0}]
["2. USO DEL SUELO "]
["USO RESIDENCIAL O RECREACIONAL (7%)"]
["USO MIXTO (3.5%)"]
["USO INDUSTRIAL  O COMERCIAL  (0%)"]
["TOTAL USO DEL SUELO",null,null,{"$f":"SUM(D23:E25)","v":0}]
["3. CUMPLIMIENTO NORMA NSR  98 / NSR 10"]
["SI CUMPLE (0%)",null,null,0]
["NO CUMPLE (7%)"]
["TOTAL NORMA NSR  98 / NSR 10",null,null,{"$f":"SUM(D28:E29)","v":0}]
["\"Antes de imprimir este documento… piense en el medio ambiente!\nCualquier copia impresa de este documento se considera como COPIA NO CONTROLADA.\nLOS DATOS PROPORCIONADOS SERAN TRATADOS DE ACUERDO A LA POLITICA DE TRATAMIENTO DE DATOS PERSONALES DEL ICBF Y A LA LEY 1581 DE 2012"]

{"sheet":"FORMATO DE EVALUACIÓN","index":7,"n_rows":40,"n_cols":7,"rows_kept":40,"cut":false,"hidden":false,"merged":[[22,0,26,1],[27,0,31,1],[37,0,37,3],[32,0,34,1],[35,0,36,1],[3,0,3,4],[4,0,4,2],[12,2,12,3],[4,3,4,4],[5,3,5,4],[6,3,6,4],[7,3,7,4],[8,3,8,4],[9,3,9,4],[10,3,10,4],[5,0,5,2],[8,0,8,2],[9,0,9,2],[6,0,6,2],[7,0,7,2],[2,3,2,4],[39,0,39,4],[38,0,38,3],[10,0,10,2],[11,0,11,4],[12,0,12,1],[13,0,16,1],[17,0,21,1],[13,4,16,4],[17,4,21,4],[35,4,36,4],[22,4,26,4],[27,4,31,4],[32,4,34,4],[0,0,2,0],[0,1,2,2]]}
[null,"PROCESO \nGESTIÓN DEL TALENTO HUMANO\n\nMATRIZ VALORACIÓN DE RIESGOS DE EMERGENCIA",null,"F2.P9.GTH","2026-04-28"]
[null,null,null,"Versión 10","Página 1 de 1"]
[null,null,null,"Clasificación de la Información \nPública"]
["1. RESULTADOS OBTENIDOS  "]
["ASPECTO",null,null,"PUNTAJE OBTENIDO"]
["CLASIFICACIÓN EN LA MATRIZ DE RIESGOS ",null,null,{"$f":"'2. MATRIZ DE RIESGOS'!C12","v":0}]
["PUNTAJE OBTENIDO EN ELEMENTOS DE GESTIÓN EN SEGURIDAD Y SALUD EN EL TRABAJO",null,null,{"$f":"+'3. ELEMENTOS EN GESTIÓN S.S.T'!C32","v":0}]
["PUNTAJE OBTENIDO EN ELEMENTOS AMBIENTALES",null,null,{"$f":"'4. ELEMENTOS AMBIENTALES'!C23","v":0}]
["RELACIÓN ÁREAS DE AMORTIGUAMIENTO/ÁREA ESTABLECIMIENTO",null,null,{"$f":"+'5. CARACTERISTICAS DE ÁREAS'!D21:E21","v":0}]
["USO DEL SUELO SITIO DE UBICACIÓN ",null,null,{"$f":"'5. CARACTERISTICAS DE ÁREAS'!D26","v":0}]
["CUMPLIMIENTO DE LA NORMA NSR  98 / NSR 10",null,null,{"$f":"+'5. CARACTERISTICAS DE ÁREAS'!D30","v":0}]
["2. TABLA REFERENCIA "]
["ASPECTO ",null,"RANGO ",null,"ALCANZADO POR LA SEDE "]
["MATRIZ DE RIESGOS ",null,"CLASIFICACIONES D Y E ",0.4,{"$f":"D6","v":0}]
[null,null,"CLASIFICACIÓN C, 4B Y 5B ",0.2]
[null,null,"CLASIFICACIONES 1B, 2B, 3B, 4A, Y 5A",0.1]
[null,null,"CLASIFICACIONES 1A, 2A",0]
["ELEMENTOS DE GESTIÓN EN SEGURIDAD Y SALUD EN EL TRABAJO ",null,"20 - 25 PUNTOS ",0.2,{"$f":"IF(D7<0.8,0,IF(D7<6.5,5%,IF(D7<13,10%,IF(D7<19.5,15%,20%))))","v":0}]
[null,null,"13 A 19 PUNTOS ",0.15]
[null,null,"7 A 13 PUNTOS ",0.1]
[null,null,"1 A 6 PUNTOS ",0.05]
[null,null,"0 PUNTOS",0]
["ELEMENTOS AMBIENTALES ",null,"13 A 17 PUNTOS ",0.2,{"$f":"IF(D8<0.8,0,IF(D8<4.5,5%,IF(D8<8.5,10%,IF(D8<12.5,15%,20%))))","v":0}]
[null,null,"9 A 12 PUNTOS",0.15]
[null,null,"5 A 8 PUNTOS ",0.1]
[null,null,"1 A 4 PUNTOS ",0.05]
[null,null,"0 PUNTOS ",0]
["RELACIÓN ÁREAS DE AMORTIGUAMIENTO/ÁREA ESTABLECIMIENTO",null,"MAYOR A 75 %",0,{"$f":"IF(AND($D$9>=\nF32,$D$9<=G32),\nD32,IF(AND($D$9>=\nF31,$D$9<=G31),\nD31,IF(AND($D$9>=F30,$D$9<=\nG30\n),D30,IF(AND($D$9>=\nF29,$D$9<=\nG29\n),D29,IF(AND($D$9>=\nF28,$D$9<=G28),\nD28,IF(AND($D$9>=G28),\nD28\n))))))","v":0.06},0.75,1]
[null,null,"ENTRE 50% Y 75 %",1.4999999999999999E-2,null,0.5,0.75]
[null,null,"ENTRE 25 % Y 49 %",0.03,null,0.25,0.49]
[null,null,"ENTRE 10 % Y 24 %",4.4999999999999998E-2,null,0.1,0.24]
[null,null,"MENOR AL 9 %",0.06,null,0,0.09]
["USO DEL SUELO DEL SITIO DE UBICACIÓN ",null,"USO COMERCIALES O INDUSTRIAL",0,{"$f":"D10","v":0}]
[null,null,"USO MIXTO (COMERCIAL Y RESIDENCIAL)",3.5000000000000003E-2]
[null,null,"USO RESIDENCIAL O RECREACIONAL",7.0000000000000007E-2]
["CUMPLIMIENTO DE LA NORMA NSR 98 / NSR 10",null,"CUMPLE ",0,{"$f":"D11","v":0}]
[null,null,"NO CUMPLE ",7.0000000000000007E-2]
["3. SUMATORIA DE PORCENTAJES",null,null,null,{"$f":"SUM(E14:E37)","v":0.06}]
["4. INTERPRETACIÓN",null,null,null,{"$f":"IF(E38<30%,\"Riesgo Bajo\",IF(E38<65%,\"Riesgo Medio\",\"Riesgo Alto\"))","v":"Riesgo Bajo"}]
["\"Antes de imprimir este documento… piense en el medio ambiente!\nCualquier copia impresa de este documento se considera como COPIA NO CONTROLADA.\nLOS DATOS PROPORCIONADOS SERAN TRATADOS DE ACUERDO A LA POLITICA DE TRATAMIENTO DE DATOS PERSONALES DEL ICBF Y A LA LEY 1581 DE 2012"]